Body Name,Body,Service Level,Expense Type,Expense Code,Narrative,Date,Transaction Number,Amount,Capital and Revenue,Supplier Name,Supplier ID
South Ribble Borough Council,http://statistics.data.gov.uk/id/local-authority/30UE,Central Support Services,Furniture- Equip & Materials,4040,1 brake caliper PO13 UUM JFC17143,08/09/2021,0000471190,348.00,Revenue,AA UK CV t/a Hydrair Truck & Trailer,0
South Ribble Borough Council,http://statistics.data.gov.uk/id/local-authority/30UE,Central Support Services,Premises Repair & Mtne,2020,Please provide skip as per NAME REDACTED for the Civic Centre,22/09/2021,0000471921,285.00,Revenue,ABLE SKIP HIRE LTD,0
South Ribble Borough Council,http://statistics.data.gov.uk/id/local-authority/30UE,Central Support Services,Services,4548,"Scope confirmation, documentation review, site evaluation, Complete on-site review of management system, Annual Registration Fee",22/09/2021,0000471895,830.00,Revenue,ALCUMUS ISOQAR LTD,0
South Ribble Borough Council,http://statistics.data.gov.uk/id/local-authority/30UE,Local Tax Collection,Miscellaneous Expenses,4811,post off,08/09/2021,0000471558,529.84,Revenue,ALLPAY LTD,0
South Ribble Borough Council,http://statistics.data.gov.uk/id/local-authority/30UE,Local Tax Collection,Miscellaneous Expenses,4811,paypoint,08/09/2021,0000471558,62.00,Revenue,ALLPAY LTD,0
South Ribble Borough Council,http://statistics.data.gov.uk/id/local-authority/30UE,Local Tax Collection,Miscellaneous Expenses,4811,web,08/09/2021,0000471558,46.00,Revenue,ALLPAY LTD,0
South Ribble Borough Council,http://statistics.data.gov.uk/id/local-authority/30UE,Recreation & Sport,Services,4510,May - July 2021 Instructor Fee,01/09/2021,0000471407,225.00,Revenue,Alyson Richmond,0
South Ribble Borough Council,http://statistics.data.gov.uk/id/local-authority/30UE,Recreation & Sport,Services,4510,May - July 2021 Instructor Fee,01/09/2021,0000471407,30.00,Revenue,Alyson Richmond,0
South Ribble Borough Council,http://statistics.data.gov.uk/id/local-authority/30UE,Recreation & Sport,Water,2511,07 Jul 2021 to 06 Aug 2021,08/09/2021,0000471613,943.52,Revenue,Anglian Water Business (National) t/as Wave Utilit,0
South Ribble Borough Council,http://statistics.data.gov.uk/id/local-authority/30UE,Recreation & Sport,Water,2511,07 Jul 2021 to 06 Aug 2021,08/09/2021,0000471614,810.20,Revenue,Anglian Water Business (National) t/as Wave Utilit,0
South Ribble Borough Council,http://statistics.data.gov.uk/id/local-authority/30UE,Recreation & Sport,Water,2511,07 Jul 2021 to 15 September 2021,08/09/2021,0000471615,"1,346.77",Revenue,Anglian Water Business (National) t/as Wave Utilit,0
South Ribble Borough Council,http://statistics.data.gov.uk/id/local-authority/30UE,Recreation & Sport,Water,2511,07 July 2021 to 06 Aug 2021,08/09/2021,0000471616,269.44,Revenue,Anglian Water Business (National) t/as Wave Utilit,0
South Ribble Borough Council,http://statistics.data.gov.uk/id/local-authority/30UE,Surplus or Deficit on Trading,Water,2511,5 sites water charge,15/09/2021,0000471634,"1,971.65",Revenue,Anglian Water Business (National) t/as Wave Utilit,0
South Ribble Borough Council,http://statistics.data.gov.uk/id/local-authority/30UE,Surplus or Deficit on Trading,Water,2511,5 sites sewerage,15/09/2021,0000471634,"1,160.22",Revenue,Anglian Water Business (National) t/as Wave Utilit,0
South Ribble Borough Council,http://statistics.data.gov.uk/id/local-authority/30UE,Surplus or Deficit on Trading,Water,2511,5 sites drainage,15/09/2021,0000471634,"1,084.81",Revenue,Anglian Water Business (National) t/as Wave Utilit,0
South Ribble Borough Council,http://statistics.data.gov.uk/id/local-authority/30UE,Capital,Deferrd Chgs-Improvemnt Grants,C570,"DFG WORK TO ADAPT A LEVEL ACCESS BATHROOM AT ADDRESS REDACTED AS SRBC PLANS, CONTRIBUTION OF 1162.04",22/09/2021,0000471978,"3,842.06",Revenue,APG DOMESTIC SERVICES,0
South Ribble Borough Council,http://statistics.data.gov.uk/id/local-authority/30UE,Capital,Deferrd Chgs-Improvemnt Grants,C570,"DFG WORK TO ADAPT A BATHROOM AT ADDRESS REDACTED AS PER QUOTE AND SRBC PLANS, CONTRIBUTION OF 602.45",29/09/2021,0000472124,"4,274.63",Revenue,APG DOMESTIC SERVICES,0
South Ribble Borough Council,http://statistics.data.gov.uk/id/local-authority/30UE,Recreation & Sport,Catering,4311,"Bamber Bridge Leisure Centre, Water Cooler rental, Annual rental - 299, WEEE/Environmental charge - 8.40, Cooler deposit - 50",22/09/2021,0000470742,307.40,Revenue,AquAid Franchising Limited (Liverpool),0
South Ribble Borough Council,http://statistics.data.gov.uk/id/local-authority/30UE,Recreation & Sport,Catering,4311,deposit,22/09/2021,0000470742,50.00,Revenue,AquAid Franchising Limited (Liverpool),0
South Ribble Borough Council,http://statistics.data.gov.uk/id/local-authority/30UE,Recreation & Sport,Catering,4310,"Penwortham Leisure Centre, Water Cooler rental, Annual rental - 299, WEEE/Environmental charge - 8.40, Cooler deposit - 50",22/09/2021,0000470743,307.40,Revenue,AquAid Franchising Limited (Liverpool),0
South Ribble Borough Council,http://statistics.data.gov.uk/id/local-authority/30UE,Recreation & Sport,Catering,4310,deposit,22/09/2021,0000470743,50.00,Revenue,AquAid Franchising Limited (Liverpool),0
South Ribble Borough Council,http://statistics.data.gov.uk/id/local-authority/30UE,Community Development,Miscellaneous Expenses,4861,"2 planters and delivery of the planters, ref 0636",15/09/2021,0000471638,790.00,Revenue,Ark Plastics Ltd,0
South Ribble Borough Council,http://statistics.data.gov.uk/id/local-authority/30UE,Capital,Deferrd Chgs-Improvemnt Grants,C570,DFG WORK FOR ADAPTATION FOR FLOORING AT ADDRESS REDACTED AS PER SRBC AGREEMENT AND QUOTE SUPPLIED,15/09/2021,0000471688,526.00,Revenue,Banks flooring solutions Ltd,0
South Ribble Borough Council,http://statistics.data.gov.uk/id/local-authority/30UE,Capital,Capital Other Land & Bldgs,C230,Replacement of LED lighting at the Civic Centre as per NAME REDACTED Request,08/09/2021,0000471408,"58,205.48",Revenue,BELEC ELECTRICAL LTD,0
South Ribble Borough Council,http://statistics.data.gov.uk/id/local-authority/30UE,Recreation & Sport,Furniture- Equip & Materials,4040,Various Sports Equipment for Rugby Competitions and Paralympic Competitions,22/09/2021,0000471712,776.50,Revenue,Bishop Sports & Leisure Ltd,0
South Ribble Borough Council,http://statistics.data.gov.uk/id/local-authority/30UE,Recreation & Sport,Furniture- Equip & Materials,4011,Boditrax Subscription April 2021 - August 2021 Leyland Leisure Centre,15/09/2021,0000471673,495.00,Revenue,Boditrax Technologies Ltd,0
South Ribble Borough Council,http://statistics.data.gov.uk/id/local-authority/30UE,Short Term Creditors,Balance Sheet,0140,25 x Meadow Clary (salvia pratensis) plants,15/09/2021,0000471561,24.17,Revenue,Boston Seeds Ltd,0
South Ribble Borough Council,http://statistics.data.gov.uk/id/local-authority/30UE,Short Term Creditors,Balance Sheet,0140,25 x Cowslip (primula veris) plants,15/09/2021,0000471561,24.17,Revenue,Boston Seeds Ltd,0
South Ribble Borough Council,http://statistics.data.gov.uk/id/local-authority/30UE,Short Term Creditors,Balance Sheet,0140,25 x Meadow Cranesbill (geranium pratense) plants,15/09/2021,0000471561,24.17,Revenue,Boston Seeds Ltd,0
South Ribble Borough Council,http://statistics.data.gov.uk/id/local-authority/30UE,Short Term Creditors,Balance Sheet,0140,25 x Fleabane Common (pulicaria dysenterica) plants,15/09/2021,0000471561,24.17,Revenue,Boston Seeds Ltd,0
South Ribble Borough Council,http://statistics.data.gov.uk/id/local-authority/30UE,Short Term Creditors,Balance Sheet,0140,25 x Foxglove (digitalis purpurea) plants,15/09/2021,0000471561,24.17,Revenue,Boston Seeds Ltd,0
South Ribble Borough Council,http://statistics.data.gov.uk/id/local-authority/30UE,Short Term Creditors,Balance Sheet,0140,25 x Goats beard (tragopogon pratensis) plants,15/09/2021,0000471561,24.17,Revenue,Boston Seeds Ltd,0
South Ribble Borough Council,http://statistics.data.gov.uk/id/local-authority/30UE,Short Term Creditors,Balance Sheet,0140,25 x Hyssop (hyssopus officinalis) plants,15/09/2021,0000471561,24.17,Revenue,Boston Seeds Ltd,0
South Ribble Borough Council,http://statistics.data.gov.uk/id/local-authority/30UE,Short Term Creditors,Balance Sheet,0140,25 x Ragged Robin (lychnis officinalis) plants,15/09/2021,0000471561,24.17,Revenue,Boston Seeds Ltd,0
South Ribble Borough Council,http://statistics.data.gov.uk/id/local-authority/30UE,Short Term Creditors,Balance Sheet,0140,25 x Wood Sage (teucrium scorodonia) plants,15/09/2021,0000471561,24.17,Revenue,Boston Seeds Ltd,0
South Ribble Borough Council,http://statistics.data.gov.uk/id/local-authority/30UE,Short Term Creditors,Balance Sheet,0140,25 x Sneezewort (achillea ptarmica) plants,15/09/2021,0000471561,24.17,Revenue,Boston Seeds Ltd,0
South Ribble Borough Council,http://statistics.data.gov.uk/id/local-authority/30UE,Short Term Creditors,Balance Sheet,0140,25 x Vipers Bugloss (echium vulgare) plants,15/09/2021,0000471561,24.17,Revenue,Boston Seeds Ltd,0
South Ribble Borough Council,http://statistics.data.gov.uk/id/local-authority/30UE,Short Term Creditors,Balance Sheet,0140,25 x Betony (stachys officinalis) plants,15/09/2021,0000471561,24.17,Revenue,Boston Seeds Ltd,0
South Ribble Borough Council,http://statistics.data.gov.uk/id/local-authority/30UE,Community Development,Services,4510,Sessions delivered 3rd - 27 August for HAF project as agreed,08/09/2021,0000471639,"6,400.00",Revenue,Box Clever CIC,0
South Ribble Borough Council,http://statistics.data.gov.uk/id/local-authority/30UE,Recreation & Sport,Catering,4310,various cafe stock,15/09/2021,0000471536,294.01,Revenue,Brakes Broz Ltd,0
South Ribble Borough Council,http://statistics.data.gov.uk/id/local-authority/30UE,Recreation & Sport,Catering,4310,zero rated,15/09/2021,0000471536,97.27,Revenue,Brakes Broz Ltd,0
South Ribble Borough Council,http://statistics.data.gov.uk/id/local-authority/30UE,Recreation & Sport,Miscellaneous Expenses,4894,Teaching Yoga to Children (6 day course),22/09/2021,0000471980,595.00,Revenue,Breathe and Be You,0
South Ribble Borough Council,http://statistics.data.gov.uk/id/local-authority/30UE,Recreation & Sport,Premises Repair & Mtne,2020,HTH calcium hypo granules x 10,01/09/2021,0000470079,"1,167.00",Revenue,Brenntag UK Ltd,0
South Ribble Borough Council,http://statistics.data.gov.uk/id/local-authority/30UE,Recreation & Sport,Premises Repair & Mtne,2020,sulphuric acid x3,01/09/2021,0000470079,51.00,Revenue,Brenntag UK Ltd,0
South Ribble Borough Council,http://statistics.data.gov.uk/id/local-authority/30UE,Recreation & Sport,Premises Repair & Mtne,2020,sodium bicarbonate - bags - x4,01/09/2021,0000470079,60.00,Revenue,Brenntag UK Ltd,0
South Ribble Borough Council,http://statistics.data.gov.uk/id/local-authority/30UE,Recreation & Sport,Premises Repair & Mtne,2020,poly aluminum chloride tub - x3,01/09/2021,0000470079,96.00,Revenue,Brenntag UK Ltd,0
South Ribble Borough Council,http://statistics.data.gov.uk/id/local-authority/30UE,Recreation & Sport,Furniture- Equip & Materials,4010,HTH003NH HTH dedusted granular 25kg @96.00 x 5,22/09/2021,0000471695,480.00,Revenue,Brenntag UK Ltd,0
South Ribble Borough Council,http://statistics.data.gov.uk/id/local-authority/30UE,Recreation & Sport,Furniture- Equip & Materials,4010,delivery,22/09/2021,0000471695,78.00,Revenue,Brenntag UK Ltd,0
South Ribble Borough Council,http://statistics.data.gov.uk/id/local-authority/30UE,Recreation & Sport,Furniture- Equip & Materials,4040,"HTH Granules Tub 96.00 x 4, Sulphuric Acid Tub 45% 17.00 x 4, Delivery 78",22/09/2021,0000471805,520.00,Revenue,Brenntag UK Ltd,0
South Ribble Borough Council,http://statistics.data.gov.uk/id/local-authority/30UE,Recreation & Sport,Furniture- Equip & Materials,4040,delivey charge,22/09/2021,0000471805,78.00,Revenue,Brenntag UK Ltd,0
South Ribble Borough Council,http://statistics.data.gov.uk/id/local-authority/30UE,Recreation & Sport,Cleaning & Domestic Supplies,2711,Delivery Cost,22/09/2021,0000471859,78.00,Revenue,Brenntag UK Ltd,0
South Ribble Borough Council,http://statistics.data.gov.uk/id/local-authority/30UE,Recreation & Sport,Cleaning & Domestic Supplies,2711,POLYALUMINIUM CHLORIDE (CLEAR) [25LT/30KG] 2 x 21.00,22/09/2021,0000471859,100.00,Revenue,Brenntag UK Ltd,0
South Ribble Borough Council,http://statistics.data.gov.uk/id/local-authority/30UE,Recreation & Sport,Cleaning & Domestic Supplies,2711,HTH DEDUSTED GRANULES [25KG] 5 x 68.88,22/09/2021,0000471859,480.00,Revenue,Brenntag UK Ltd,0
South Ribble Borough Council,http://statistics.data.gov.uk/id/local-authority/30UE,Recreation & Sport,Cleaning & Domestic Supplies,2711,SODIUM BICARBONATE TECH POWDER [25K 6 x 20.23,22/09/2021,0000471859,90.00,Revenue,Brenntag UK Ltd,0
South Ribble Borough Council,http://statistics.data.gov.uk/id/local-authority/30UE,Recreation & Sport,Cleaning & Domestic Supplies,2711,TOTAL ALKALINITY (DROP COUNT) AS072 1 x 7.79,22/09/2021,0000471859,9.80,Revenue,Brenntag UK Ltd,0
South Ribble Borough Council,http://statistics.data.gov.uk/id/local-authority/30UE,Recreation & Sport,Cleaning & Domestic Supplies,2711,CALCIUM HARDNESS AS077 [250TAB/BOTT 1 x 6.58,22/09/2021,0000471859,8.58,Revenue,Brenntag UK Ltd,0
South Ribble Borough Council,http://statistics.data.gov.uk/id/local-authority/30UE,Recreation & Sport,Cleaning & Domestic Supplies,2711,Sulphuric Acid 45% Low Iron 4 x 8.22,22/09/2021,0000471859,136.00,Revenue,Brenntag UK Ltd,0
South Ribble Borough Council,http://statistics.data.gov.uk/id/local-authority/30UE,Capital,Deferrd Chgs-Improvemnt Grants,C570,"DFG WORK TO ADAPT A BATHROOM AS PER SRBC PLANS AT ADDRESS REDACTED AS PER QUOTE, 50% COST COVERED",15/09/2021,0000471752,"1,631.77",Revenue,BRYAN LEE BUILDING CONTRACTORS LTD,0
South Ribble Borough Council,http://statistics.data.gov.uk/id/local-authority/30UE,Recreation & Sport,Cleaning & Domestic Supplies,2710,Allied Hydromax Diamond Q-Folded Cloth Blue (PK 50) Cloth Red (PK 50) Q-Folded Cloth Green (PK 50),08/09/2021,0000471534,544.69,Revenue,Bunzl UK Ltd T/A Cleaning and HygieneSupplies,0
South Ribble Borough Council,http://statistics.data.gov.uk/id/local-authority/30UE,Recreation & Sport,Furniture- Equip & Materials,4010,035954 Biotek citrus clean x 2 @14.35,15/09/2021,0000471562,30.70,Revenue,Bunzl UK Ltd T/A Cleaning and HygieneSupplies,0
South Ribble Borough Council,http://statistics.data.gov.uk/id/local-authority/30UE,Recreation & Sport,Furniture- Equip & Materials,4010,037959 Biotek tile cleaner x 2 @21.31,15/09/2021,0000471562,42.42,Revenue,Bunzl UK Ltd T/A Cleaning and HygieneSupplies,0
South Ribble Borough Council,http://statistics.data.gov.uk/id/local-authority/30UE,Recreation & Sport,Furniture- Equip & Materials,4010,001571 Cleanline economy microfiber cloth x 10 @0.57,15/09/2021,0000471562,5.80,Revenue,Bunzl UK Ltd T/A Cleaning and HygieneSupplies,0
South Ribble Borough Council,http://statistics.data.gov.uk/id/local-authority/30UE,Recreation & Sport,Furniture- Equip & Materials,4010,003044S cleanline wizard cleaning sponge x 2 @5.07,15/09/2021,0000471562,12.58,Revenue,Bunzl UK Ltd T/A Cleaning and HygieneSupplies,0
South Ribble Borough Council,http://statistics.data.gov.uk/id/local-authority/30UE,Recreation & Sport,Furniture- Equip & Materials,4010,070057 Compactor sack black EX HD 20kg x 2 @16.08,15/09/2021,0000471562,32.70,Revenue,Bunzl UK Ltd T/A Cleaning and HygieneSupplies,0
South Ribble Borough Council,http://statistics.data.gov.uk/id/local-authority/30UE,Recreation & Sport,Furniture- Equip & Materials,4010,035963 Magic dash surface cleaner x 2@12.35,15/09/2021,0000471562,24.70,Revenue,Bunzl UK Ltd T/A Cleaning and HygieneSupplies,0
South Ribble Borough Council,http://statistics.data.gov.uk/id/local-authority/30UE,Recreation & Sport,Furniture- Equip & Materials,4010,037963 Magic safeguard x 4 @14.12,15/09/2021,0000471562,42.36,Revenue,Bunzl UK Ltd T/A Cleaning and HygieneSupplies,0
South Ribble Borough Council,http://statistics.data.gov.uk/id/local-authority/30UE,Recreation & Sport,Furniture- Equip & Materials,4010,015262R Plastic floor squeegee x 6 @14.56,15/09/2021,0000471562,87.36,Revenue,Bunzl UK Ltd T/A Cleaning and HygieneSupplies,0
South Ribble Borough Council,http://statistics.data.gov.uk/id/local-authority/30UE,Recreation & Sport,Furniture- Equip & Materials,4010,066121 Tork basic centre feed roll blue x 10 @17.55,15/09/2021,0000471562,178.80,Revenue,Bunzl UK Ltd T/A Cleaning and HygieneSupplies,0
South Ribble Borough Council,http://statistics.data.gov.uk/id/local-authority/30UE,Recreation & Sport,Furniture- Equip & Materials,4010,800012B Keep clean vinly powdered gloves clear medium x 4 @5.33,15/09/2021,0000471562,10.68,Revenue,Bunzl UK Ltd T/A Cleaning and HygieneSupplies,0
South Ribble Borough Council,http://statistics.data.gov.uk/id/local-authority/30UE,Recreation & Sport,Furniture- Equip & Materials,4010,800012C Keep clean vinyl powdered gloves clear large x 4 @5.33,15/09/2021,0000471562,10.68,Revenue,Bunzl UK Ltd T/A Cleaning and HygieneSupplies,0
South Ribble Borough Council,http://statistics.data.gov.uk/id/local-authority/30UE,Capital,Capital Other Land & Bldgs,C230,To carry out urgent works to the unsafe memorials within the closed grave yard at St Mary`s Church Penwortham,08/09/2021,0000471637,"3,000.00",Revenue,C B Price & Son Ltd,0
South Ribble Borough Council,http://statistics.data.gov.uk/id/local-authority/30UE,Central Support Services,Salaries,1121,Planning consultant to deal with Planning applications for the next 6 months,29/09/2021,0000471384,"6,562.95",Revenue,CAPITA PROPERTY AND INFRASTRUCTURE LTD,0
South Ribble Borough Council,http://statistics.data.gov.uk/id/local-authority/30UE,Recreation & Sport,Miscellaneous Expenses,488B,QTR3 mgmt fee,15/09/2021,0000471530,"1,125.00",Revenue,Carr Street Community Centre,0
South Ribble Borough Council,http://statistics.data.gov.uk/id/local-authority/30UE,Central Support Services,Salaries,1121,"Finders fee for the recruitment of a temporary Internal Auditor 2,357.99 plus VAT",29/09/2021,0000471913,"2,357.99",Revenue,Castlefield Recruitment Limited,0
South Ribble Borough Council,http://statistics.data.gov.uk/id/local-authority/30UE,Central Support Services,Training Expenses,1400,"NAME REDACTED - EFAW - 6th 7th 8th October, NAME REDACTED - EFAW - 6th 7th 8th October",15/09/2021,0000471670,270.00,Revenue,Centaur Training Services (North West) Ltd,0
South Ribble Borough Council,http://statistics.data.gov.uk/id/local-authority/30UE,Central Support Services,Premises Repair & Mtne,2021,"Annual contract for the UPS maintenance of Riello MSM 15-T4/10-T4 at the Civic Centre, Leyland as per agreement ref 306298",08/09/2021,0000471456,"1,260.00",Revenue,Central Power Services ltd,0
South Ribble Borough Council,http://statistics.data.gov.uk/id/local-authority/30UE,Central Support Services,Premises Repair & Mtne,2021,"Annual contract for the UPS maintenance of Riello SDH/Dialog Plus at the Moss Side Depot, Leyland as per agreement ref 306298",08/09/2021,0000471456,942.00,Revenue,Central Power Services ltd,0
South Ribble Borough Council,http://statistics.data.gov.uk/id/local-authority/30UE,Central Support Services,Premises Repair & Mtne,2021,"Annual contract  ref 306297 for the service of the emergency standby power unit AKSA 88kVA,  generator located at the Civic Centre, Leyland",08/09/2021,0000471515,930.00,Revenue,Central Power Services ltd,0
South Ribble Borough Council,http://statistics.data.gov.uk/id/local-authority/30UE,Homelessness,Contractors Chges,5311,ADDRESS REDACTED 22-30.6.2021 347.67,01/09/2021,0000471360,289.70,Revenue,CHORLEY BOROUGH COUNCIL,0
South Ribble Borough Council,http://statistics.data.gov.uk/id/local-authority/30UE,Homelessness,Contractors Chges,5311,"ADDRESS REDACTED 16.7.2021 - 21.8.2021, 1468.09",15/09/2021,0000471551,"1,223.40",Revenue,CHORLEY BOROUGH COUNCIL,0
South Ribble Borough Council,http://statistics.data.gov.uk/id/local-authority/30UE,Recreation & Sport,Premises Repair & Mtne,2035,2 credits rec'd,29/09/2021,0000471331,272.90,Revenue,CHUBB LTD,0
South Ribble Borough Council,http://statistics.data.gov.uk/id/local-authority/30UE,Recreation & Sport,Premises Repair & Mtne,2035,"to fit Heavy duty contacts to the two pool doors, 2x heavy duty contacts complete with IP boxes, terminations and ancillary items, 1x labour",22/09/2021,0000471850,320.00,Revenue,CHUBB LTD,0
South Ribble Borough Council,http://statistics.data.gov.uk/id/local-authority/30UE,Corporate Management,Miscellaneous Expenses,4851,Contribution to Refernet,08/09/2021,0000471563,"1,500.00",Revenue,Citizens Advice Lancashire,0
South Ribble Borough Council,http://statistics.data.gov.uk/id/local-authority/30UE,General Grants Bequests & Dona,Grants & Subscriptions,4730,Grant for the provision of advice services as per Grant Agreement,29/09/2021,0000472010,"25,000.00",Revenue,Citizens Advice Lancashire,0
South Ribble Borough Council,http://statistics.data.gov.uk/id/local-authority/30UE,Central Support Services,Printing- Stat & Office Expens,413A,Civica shall provide Customer with a licence to use the services under the Contract,15/09/2021,0000470939,"10,000.00",Revenue,CIVICA UK LTD,0
South Ribble Borough Council,http://statistics.data.gov.uk/id/local-authority/30UE,Homelessness,Grants & Subscriptions,4730,"2021 - 2022 Licence, Support and Maintenance Schedule, Period: 1 October 2021 to 30 September 2022, Hosting fee - HOM",01/09/2021,0000471315,970.43,Revenue,CIVICA UK LTD,0
South Ribble Borough Council,http://statistics.data.gov.uk/id/local-authority/30UE,Homelessness,Grants & Subscriptions,4730,"2021 - 2022 Licence, Support and Maintenance Schedule, Period: 1 October 2021 to 30 September 2022, Partner Support Plan - HOM",01/09/2021,0000471315,"3,397.10",Revenue,CIVICA UK LTD,0
South Ribble Borough Council,http://statistics.data.gov.uk/id/local-authority/30UE,Capital,Capital Other Land & Bldgs,C230,"Description - construction of new football pitch and carpark @ Lostockhall st Gerards fc Cost - 89,915.60 as per NAME REDACTED",22/09/2021,0000471910,"45,513.98",Revenue,Cleveland Land Services (Guisborough) Limited,0
South Ribble Borough Council,http://statistics.data.gov.uk/id/local-authority/30UE,Capital,Capital Other Land & Bldgs,C230,Please undertake remediation works at Bent Lane Leyland as agreed with SRBC Regeneration department,29/09/2021,0000472095,"46,536.94",Revenue,CLIVE HURT (PLANT HIRE) LTD,0
South Ribble Borough Council,http://statistics.data.gov.uk/id/local-authority/30UE,Homelessness,Grants & Subscriptions,4730,Agreed rent in advance DS 4 weeks,01/09/2021,0000471457,414.84,Revenue,COMMUNITY GATEWAY HOUSING ASSOCIATION,0
South Ribble Borough Council,http://statistics.data.gov.uk/id/local-authority/30UE,Homelessness,Grants & Subscriptions,4730,Agreed rent in advance 4 weeks,01/09/2021,0000471458,519.40,Revenue,COMMUNITY GATEWAY HOUSING ASSOCIATION,0
South Ribble Borough Council,http://statistics.data.gov.uk/id/local-authority/30UE,Central Support Services,Training Expenses,1403,"NAME REDACTED TO ATTEND BTC 3 AWARD IN COMMUNITY SAFETY, CRIME & NUISANCE MANAGEMENT FOR PRACTITIONERS",08/09/2021,0000471564,"1,095.00",Revenue,Community Safety Professionals Training Ltd,0
South Ribble Borough Council,http://statistics.data.gov.uk/id/local-authority/30UE,Capital,Capital Other Land & Bldgs,C230,"1 Openreach Diversion 21,784.47 ref Quote Ref: 10130 Former Mckenzie Arms, Bamber Bridge, PR5 6EE",22/09/2021,0000472009,"21,784.47",Revenue,connections2energy ltd,0
South Ribble Borough Council,http://statistics.data.gov.uk/id/local-authority/30UE,Recreation & Sport,Premises Repair & Mtne,2020,SMALL GYM - To supply and fit a new wall mounted controller to replace the current that has faulty buttons. QUOTE REF - 186061,08/09/2021,0000471533,250.00,Revenue,Coolair Services Limited,0
South Ribble Borough Council,http://statistics.data.gov.uk/id/local-authority/30UE,Recreation & Sport,Premises Repair & Mtne,2021,2021 / 2022 annual contract for  2 visits per year for air conditioning maintenance at Penwortham Leisure centre as per your ref AMS4316,08/09/2021,0000471566,300.00,Revenue,Coolair Services Limited,0
South Ribble Borough Council,http://statistics.data.gov.uk/id/local-authority/30UE,Recreation & Sport,Premises Repair & Mtne,2021,2021 / 2022 annual contract for  2 visits per year for air conditioning maintenance at Leyland Leisure centre as per your ref AMS4317,08/09/2021,0000471567,300.00,Revenue,Coolair Services Limited,0
South Ribble Borough Council,http://statistics.data.gov.uk/id/local-authority/30UE,Recreation & Sport,Premises Repair & Mtne,2021,2021 / 2022 annual contract for  2 visits per year for air conditioning maintenance at South Ribble tennis centre as per your ref AMS4314,08/09/2021,0000471568,300.00,Revenue,Coolair Services Limited,0
South Ribble Borough Council,http://statistics.data.gov.uk/id/local-authority/30UE,Recreation & Sport,Premises Repair & Mtne,2021,2021 / 2022 annual contract for  2 visits per year for air conditioning maintenance at Bamber Bridge leisure centre as per your ref AMS4315,08/09/2021,0000471569,300.00,Revenue,Coolair Services Limited,0
South Ribble Borough Council,http://statistics.data.gov.uk/id/local-authority/30UE,Recreation & Sport,Energy Costs,2304,jul-aug21,22/09/2021,0000471543,904.21,Revenue,Corona Energy Retail 4 Limited,0
South Ribble Borough Council,http://statistics.data.gov.uk/id/local-authority/30UE,Recreation & Sport,Energy Costs,2304,jul-aug21,22/09/2021,0000471545,"2,437.50",Revenue,Corona Energy Retail 4 Limited,0
South Ribble Borough Council,http://statistics.data.gov.uk/id/local-authority/30UE,Recreation & Sport,Energy Costs,2304,jul-aug21,22/09/2021,0000471547,"2,442.14",Revenue,Corona Energy Retail 4 Limited,0
South Ribble Borough Council,http://statistics.data.gov.uk/id/local-authority/30UE,Recreation & Sport,Energy Costs,2304,Brindle Road,22/09/2021,0000471949,"2,703.41",Revenue,Corona Energy Retail 4 Limited,0
South Ribble Borough Council,http://statistics.data.gov.uk/id/local-authority/30UE,Recreation & Sport,Energy Costs,2304,Lancaster Gate,22/09/2021,0000471950,"4,839.57",Revenue,Corona Energy Retail 4 Limited,0
South Ribble Borough Council,http://statistics.data.gov.uk/id/local-authority/30UE,Recreation & Sport,Energy Costs,2304,Brindle Road,22/09/2021,0000471952,523.12,Revenue,Corona Energy Retail 4 Limited,0
South Ribble Borough Council,http://statistics.data.gov.uk/id/local-authority/30UE,Recreation & Sport,Energy Costs,2304,Brindle Road,22/09/2021,0000471953,"2,431.93",Revenue,Corona Energy Retail 4 Limited,0
South Ribble Borough Council,http://statistics.data.gov.uk/id/local-authority/30UE,Recreation & Sport,Energy Costs,2304,Lancaster Gate,22/09/2021,0000471954,"4,576.57",Revenue,Corona Energy Retail 4 Limited,0
South Ribble Borough Council,http://statistics.data.gov.uk/id/local-authority/30UE,Recreation & Sport,Energy Costs,2304,Brindle Road,22/09/2021,0000471956,"3,065.76",Revenue,Corona Energy Retail 4 Limited,0
South Ribble Borough Council,http://statistics.data.gov.uk/id/local-authority/30UE,Recreation & Sport,Energy Costs,2304,Brindle Road,22/09/2021,0000471957,804.92,Revenue,Corona Energy Retail 4 Limited,0
South Ribble Borough Council,http://statistics.data.gov.uk/id/local-authority/30UE,Recreation & Sport,Energy Costs,2304,Lancaster Gate,22/09/2021,0000471958,"2,478.02",Revenue,Corona Energy Retail 4 Limited,0
South Ribble Borough Council,http://statistics.data.gov.uk/id/local-authority/30UE,Recreation & Sport,Energy Costs,2304,Brindle Road,22/09/2021,0000471960,"1,993.57",Revenue,Corona Energy Retail 4 Limited,0
South Ribble Borough Council,http://statistics.data.gov.uk/id/local-authority/30UE,Recreation & Sport,Energy Costs,2304,Brindle Road,22/09/2021,0000471961,311.81,Revenue,Corona Energy Retail 4 Limited,0
South Ribble Borough Council,http://statistics.data.gov.uk/id/local-authority/30UE,Recreation & Sport,Energy Costs,2304,Brindle Road,22/09/2021,0000471965,454.45,Revenue,Corona Energy Retail 4 Limited,0
South Ribble Borough Council,http://statistics.data.gov.uk/id/local-authority/30UE,Recreation & Sport,Energy Costs,2304,Lancaster Gate,22/09/2021,0000471967,"1,570.10",Revenue,Corona Energy Retail 4 Limited,0
South Ribble Borough Council,http://statistics.data.gov.uk/id/local-authority/30UE,Central Support Services,Communications & Comuting,4244,"20W USB-C Power Adaptor x20, 5W USB UK Charger & Lightning Lead Bundle x10, USB-C to 3.5mm Headphone Jack Adaptor x10",01/09/2021,0000469671,851.46,Revenue,CPC Re: COMBINED PRECISION COMPONENTS PLC,0
South Ribble Borough Council,http://statistics.data.gov.uk/id/local-authority/30UE,Central Support Services,Communications & Comuting,4241,"11"" iPad Pro (2021) 256GB WiFi, Space Grey - MHQU3B/A SB07748",01/09/2021,0000471000,707.50,Revenue,CPC Re: COMBINED PRECISION COMPONENTS PLC,0
South Ribble Borough Council,http://statistics.data.gov.uk/id/local-authority/30UE,Local Tax Collection,Communications & Comuting,4291,Postage April - October 2021,01/09/2021,0000471368,385.83,Revenue,CRITIQOM,0
South Ribble Borough Council,http://statistics.data.gov.uk/id/local-authority/30UE,Local Tax Collection,Communications & Comuting,4291,Postage April - October 2021,08/09/2021,0000471549,"1,219.42",Revenue,CRITIQOM,0
South Ribble Borough Council,http://statistics.data.gov.uk/id/local-authority/30UE,Local Tax Collection,Communications & Comuting,4291,Postage April - October 2021,22/09/2021,0000471701,444.27,Revenue,CRITIQOM,0
South Ribble Borough Council,http://statistics.data.gov.uk/id/local-authority/30UE,Local Tax Collection,Communications & Comuting,4291,Postage April - October 2021,22/09/2021,0000471779,283.77,Revenue,CRITIQOM,0
South Ribble Borough Council,http://statistics.data.gov.uk/id/local-authority/30UE,Central Support Services,Miscellaneous Expenses,4821,PROFESSIONAL SERVICES IN RELATION TO AN EMPLOYMENT TRIBUNAL MATTER,29/09/2021,0000472093,297.60,Revenue,DAC BEACHCROFT LLP,0
South Ribble Borough Council,http://statistics.data.gov.uk/id/local-authority/30UE,Central Support Services,Miscellaneous Expenses,4821,PROFESSIONAL SERVICES IN RELATION TO AN EMPLOYMENT TRIBUNAL MATTER,29/09/2021,0000472126,"5,752.80",Revenue,DAC BEACHCROFT LLP,0
South Ribble Borough Council,http://statistics.data.gov.uk/id/local-authority/30UE,Central Support Services,Premises Repair & Mtne,2021,"Maintenance of 1 x  McSmart 240cr Industrial Water Chiller, 1 x McQuay Air Handling Unit as per Business Standard maintenance package",29/09/2021,0000472008,673.89,Revenue,DAIKIN APPLIED SERVICE,0
South Ribble Borough Council,http://statistics.data.gov.uk/id/local-authority/30UE,Recreation & Sport,Communications & Comuting,4261,PHONE LINES,15/09/2021,0000471768,808.33,Revenue,Daisy Corporate Service Trading Ltd,0
South Ribble Borough Council,http://statistics.data.gov.uk/id/local-authority/30UE,Recreation & Sport,Communications & Comuting,4261,PHONE LINES,15/09/2021,0000471769,640.03,Revenue,Daisy Corporate Service Trading Ltd,0
South Ribble Borough Council,http://statistics.data.gov.uk/id/local-authority/30UE,Recreation & Sport,Communications & Comuting,4261,PHONE LINES,15/09/2021,0000471770,493.76,Revenue,Daisy Corporate Service Trading Ltd,0
South Ribble Borough Council,http://statistics.data.gov.uk/id/local-authority/30UE,Recreation & Sport,Communications & Comuting,4261,service charge,29/09/2021,0000471973,"1,241.56",Revenue,Daisy Corporate Service Trading Ltd,0
South Ribble Borough Council,http://statistics.data.gov.uk/id/local-authority/30UE,Recreation & Sport,Communications & Comuting,4261,select serv,29/09/2021,0000471973,4.95,Revenue,Daisy Corporate Service Trading Ltd,0
South Ribble Borough Council,http://statistics.data.gov.uk/id/local-authority/30UE,Recreation & Sport,Communications & Comuting,4261,service charge,29/09/2021,0000471974,501.62,Revenue,Daisy Corporate Service Trading Ltd,0
South Ribble Borough Council,http://statistics.data.gov.uk/id/local-authority/30UE,Recreation & Sport,Communications & Comuting,4261,select charge,29/09/2021,0000471974,4.95,Revenue,Daisy Corporate Service Trading Ltd,0
South Ribble Borough Council,http://statistics.data.gov.uk/id/local-authority/30UE,Central Support Services,Services,4570,"1 x spec repair to Supply, Paint and fit new door, YD19AUM, JFC17099",15/09/2021,0000471447,"1,746.00",Revenue,DAVAND LTD (trading as Longton Coachcraft),0
South Ribble Borough Council,http://statistics.data.gov.uk/id/local-authority/30UE,Short Term Creditors,Balance Sheet,0001,,08/09/2021,0000471658,762.48,Revenue,Dean and Wood Ltd,0
South Ribble Borough Council,http://statistics.data.gov.uk/id/local-authority/30UE,Central Support Services,Furniture- Equip & Materials,4040,1 hydraulic pump VU60 HLE JFC17193,29/09/2021,0000471640,"2,094.25",Revenue,DENNIS EAGLE LTD,0
South Ribble Borough Council,http://statistics.data.gov.uk/id/local-authority/30UE,Central Support Services,Furniture- Equip & Materials,4010,"CHAINSAW CHAIN 36`"" - ST36210000114",22/09/2021,0000471641,89.33,Revenue,DICK LEIGH,0
South Ribble Borough Council,http://statistics.data.gov.uk/id/local-authority/30UE,Central Support Services,Furniture- Equip & Materials,4010,"CHAINSAW CHAIN 30TH BAR (20"") - ST36210030072",22/09/2021,0000471641,111.33,Revenue,DICK LEIGH,0
South Ribble Borough Council,http://statistics.data.gov.uk/id/local-authority/30UE,Central Support Services,Furniture- Equip & Materials,4010,SILKY ZUBAT REPLACEMENT BLADE 330mm - CO271-33,22/09/2021,0000471641,126.76,Revenue,DICK LEIGH,0
South Ribble Borough Council,http://statistics.data.gov.uk/id/local-authority/30UE,Central Support Services,Furniture- Equip & Materials,4010,"CHAINSAW CHAIN 12"" - ST36160030044",22/09/2021,0000471641,30.27,Revenue,DICK LEIGH,0
South Ribble Borough Council,http://statistics.data.gov.uk/id/local-authority/30UE,Capital,Capital Other Land & Bldgs,C230,"Rental of Temp Caf� unit for �Folly caf� Worden park. Supplied, installed and removed from site upon termination of the agreement",01/09/2021,0000471445,"2,060.00",Revenue,DP STRUCTURES LTD,0
South Ribble Borough Council,http://statistics.data.gov.uk/id/local-authority/30UE,Capital,Capital Other Land & Bldgs,C230,"Rental of Temp Caf� unit for �Folly caf�' Worden park. Supplied, installed and removed from site upon termination of the agreement",01/09/2021,0000471448,"2,060.00",Revenue,DP STRUCTURES LTD,0
South Ribble Borough Council,http://statistics.data.gov.uk/id/local-authority/30UE,Capital,Capital Other Land & Bldgs,C230,"Rental of Temp Caf� unit for �Folly caf�' Worden park. Supplied, installed and removed from site upon termination of the agreement.",01/09/2021,0000471476,"2,060.00",Revenue,DP STRUCTURES LTD,0
South Ribble Borough Council,http://statistics.data.gov.uk/id/local-authority/30UE,Capital,Capital Other Land & Bldgs,C230,"Rental of Temp Caf� unit for �Folly caf�' Worden park. Supplied, installed and removed from site upon termination of the agreement.",29/09/2021,0000472089,"2,060.00",Revenue,DP STRUCTURES LTD,0
South Ribble Borough Council,http://statistics.data.gov.uk/id/local-authority/30UE,Central Support Services,Premises Repair & Mtne,2032,"Supply and fit replacement '3' Push Button to the lift at the Civic Centre, current has been damaged. Setup, test and return to service",29/09/2021,0000472094,480.30,Revenue,E A Foulds Limited,0
South Ribble Borough Council,http://statistics.data.gov.uk/id/local-authority/30UE,Central Support Services,Premises Repair & Mtne,2032,"Supply and fit x3 upgraded lights in lift car at the civic centre, current are inoperative. Setup, test and return to service",29/09/2021,0000472094,975.68,Revenue,E A Foulds Limited,0
South Ribble Borough Council,http://statistics.data.gov.uk/id/local-authority/30UE,Recreation & Sport,Services,4510,June 2021 Instructor Services,01/09/2021,0000471430,480.00,Revenue,Elena Almond,0
South Ribble Borough Council,http://statistics.data.gov.uk/id/local-authority/30UE,Recreation & Sport,Services,4510,July 2021 Instructor Fee,01/09/2021,0000471431,340.00,Revenue,Elena Almond,0
South Ribble Borough Council,http://statistics.data.gov.uk/id/local-authority/30UE,Recreation & Sport,Services,4510,August 2021 Instructor Fee,08/09/2021,0000471557,540.00,Revenue,Elena Almond,0
South Ribble Borough Council,http://statistics.data.gov.uk/id/local-authority/30UE,Recreation & Sport,Services,4510,August 2021 Instructor Fee,08/09/2021,0000471557,100.00,Revenue,Elena Almond,0
South Ribble Borough Council,http://statistics.data.gov.uk/id/local-authority/30UE,Recreation & Sport,Services,4510,August 2021 Instructor Fee,08/09/2021,0000471570,420.00,Revenue,Emelina James,0
South Ribble Borough Council,http://statistics.data.gov.uk/id/local-authority/30UE,Capital,Capital Other Land & Bldgs,C230,For the provision of M& E Services Design and Consultancy for the McKenzie Arms project as agreed with NAME REDACTED,15/09/2021,0000471705,"3,000.00",Revenue,Envision Energy Ltd,0
South Ribble Borough Council,http://statistics.data.gov.uk/id/local-authority/30UE,Capital,Capital Other Land & Bldgs,C230,For the provision of an Energy assessment and calculation update for the McKenzie project (delivery 03/09/21),22/09/2021,0000471894,"1,800.00",Revenue,Envision Energy Ltd,0
South Ribble Borough Council,http://statistics.data.gov.uk/id/local-authority/30UE,Recreation & Sport,Premises Repair & Mtne,2020,1 x D60763 Mira Select EV Flexi Shower Valve Kit Chrome,08/09/2021,0000471651,448.25,Revenue,ESSENTIAL INDUSTRIAL SERVICES LTD,0
South Ribble Borough Council,http://statistics.data.gov.uk/id/local-authority/30UE,Central Support Services,Furniture- Equip & Materials,4040,"Bin 1051 fan belts x 2, Bin 509 alternator belt x 2, Bin 1107 track rod ends x 4",15/09/2021,0000471520,269.12,Revenue,F R SHARROCK LTD,0
South Ribble Borough Council,http://statistics.data.gov.uk/id/local-authority/30UE,Waste Collection,Services,4570,Additional Clinical Waste Collections - August 2021,08/09/2021,0000471628,586.85,Revenue,FCC Environment Services (UK) Ltd,0
South Ribble Borough Council,http://statistics.data.gov.uk/id/local-authority/30UE,Short Term Creditors,Balance Sheet,0030,ret,08/09/2021,0000471628,-29.34,Revenue,FCC Environment Services (UK) Ltd,0
South Ribble Borough Council,http://statistics.data.gov.uk/id/local-authority/30UE,Waste Collection,Services,4570,Residual Waste collection - August 2021,15/09/2021,0000471653,"47,367.71",Revenue,FCC Environment Services (UK) Ltd,0
South Ribble Borough Council,http://statistics.data.gov.uk/id/local-authority/30UE,Recycling,Services,4570,dry recycable non terrace - August 2021,15/09/2021,0000471653,"48,490.57",Revenue,FCC Environment Services (UK) Ltd,0
South Ribble Borough Council,http://statistics.data.gov.uk/id/local-authority/30UE,Recycling,Services,4570,dry recyacable - terraced - August 2021,15/09/2021,0000471653,"2,308.24",Revenue,FCC Environment Services (UK) Ltd,0
South Ribble Borough Council,http://statistics.data.gov.uk/id/local-authority/30UE,Recycling,Services,4570,Organic Waste - non terraced - August 2021,15/09/2021,0000471653,"33,573.08",Revenue,FCC Environment Services (UK) Ltd,0
South Ribble Borough Council,http://statistics.data.gov.uk/id/local-authority/30UE,Trade Waste,Services,4570,schedule 2 properties - August 2021,15/09/2021,0000471653,"1,931.17",Revenue,FCC Environment Services (UK) Ltd,0
South Ribble Borough Council,http://statistics.data.gov.uk/id/local-authority/30UE,Trade Waste,Services,4570,commercial waste collections -  August 2021,15/09/2021,0000471653,"7,517.16",Revenue,FCC Environment Services (UK) Ltd,0
South Ribble Borough Council,http://statistics.data.gov.uk/id/local-authority/30UE,Waste Collection,Services,4570,bulky waste collections -  August 2021,15/09/2021,0000471653,"1,043.40",Revenue,FCC Environment Services (UK) Ltd,0
South Ribble Borough Council,http://statistics.data.gov.uk/id/local-authority/30UE,Waste Collection,Services,4570,WEEE collections -  August 2021,15/09/2021,0000471653,392.02,Revenue,FCC Environment Services (UK) Ltd,0
South Ribble Borough Council,http://statistics.data.gov.uk/id/local-authority/30UE,Waste Collection,Services,4570,clinical waste collections -  August 2021,15/09/2021,0000471653,667.86,Revenue,FCC Environment Services (UK) Ltd,0
South Ribble Borough Council,http://statistics.data.gov.uk/id/local-authority/30UE,Waste Collection,Services,4570,replacement bins -  August 2021,15/09/2021,0000471653,"5,000.00",Revenue,FCC Environment Services (UK) Ltd,0
South Ribble Borough Council,http://statistics.data.gov.uk/id/local-authority/30UE,Waste Collection,Services,4570,additional properties  August 2021,15/09/2021,0000471653,"5,408.15",Revenue,FCC Environment Services (UK) Ltd,0
South Ribble Borough Council,http://statistics.data.gov.uk/id/local-authority/30UE,Short Term Creditors,Balance Sheet,0030,retention,15/09/2021,0000471653,"-3,216.37",Revenue,FCC Environment Services (UK) Ltd,0
South Ribble Borough Council,http://statistics.data.gov.uk/id/local-authority/30UE,Short Term Creditors,Balance Sheet,0030,retention,15/09/2021,0000471653,"-4,218.59",Revenue,FCC Environment Services (UK) Ltd,0
South Ribble Borough Council,http://statistics.data.gov.uk/id/local-authority/30UE,Waste Collection,Services,4570,Additional bulky waste collections - August 2021,29/09/2021,0000471901,"1,256.85",Revenue,FCC Environment Services (UK) Ltd,0
South Ribble Borough Council,http://statistics.data.gov.uk/id/local-authority/30UE,Waste Collection,Services,4570,Additional WEEE collections- August 2021,29/09/2021,0000471901,648.24,Revenue,FCC Environment Services (UK) Ltd,0
South Ribble Borough Council,http://statistics.data.gov.uk/id/local-authority/30UE,Short Term Creditors,Balance Sheet,0030,retentia,29/09/2021,0000471901,-95.30,Revenue,FCC Environment Services (UK) Ltd,0
South Ribble Borough Council,http://statistics.data.gov.uk/id/local-authority/30UE,Central Support Services,Furniture- Equip & Materials,4040,FOOTBALL PITCH LINE MARKER PAINT 10LTRS-PITCHMARKER Q2,22/09/2021,0000471572,498.24,Revenue,Fleet Line Markers Limited,0
South Ribble Borough Council,http://statistics.data.gov.uk/id/local-authority/30UE,Regulatory Services,Miscellaneous Expenses,485R,refund,29/09/2021,0000471948,516.25,Revenue,Flying Pig Pizza Company,0
South Ribble Borough Council,http://statistics.data.gov.uk/id/local-authority/30UE,Capital,Capital Other Land & Bldgs,C230,"Architectural Service, Re: Vernon Carus Sports Club, Factory Lane, Preston as per NAME REDACTED Existing Club House and changing facility",29/09/2021,0000472154,"1,277.00",Revenue,FuZED Architecture and Design Ltd,0
South Ribble Borough Council,http://statistics.data.gov.uk/id/local-authority/30UE,Recreation & Sport,Furniture- Equip & Materials,4040,Various items of Nike Clothing for Sports Dev. New uniform,01/09/2021,0000471326,469.38,Revenue,Galaxy,0
South Ribble Borough Council,http://statistics.data.gov.uk/id/local-authority/30UE,Central Support Services,Furniture- Equip & Materials,4040,1007323 - El Switch m PAL ZCE01-ZCY81-ZCMD - BIN G010,08/09/2021,0000464659,164.15,Revenue,GEESINK NORBA LTD,0
South Ribble Borough Council,http://statistics.data.gov.uk/id/local-authority/30UE,Central Support Services,Furniture- Equip & Materials,4040,P4400-4000 HY -High Pressure Filter Element HF735 - BIN G029,08/09/2021,0000464659,228.14,Revenue,GEESINK NORBA LTD,0
South Ribble Borough Council,http://statistics.data.gov.uk/id/local-authority/30UE,Capital,Capital Vehicles,C440,1 x RCV in line with Lot 2 as per the submitted tender document dated 17.7.20,08/09/2021,0000471123,"153,372.00",Revenue,GEESINK NORBA LTD,0
South Ribble Borough Council,http://statistics.data.gov.uk/id/local-authority/30UE,Capital,Capital Vehicles,C440,po used in full in error against inv 24791,22/09/2021,0000471124,670.00,Revenue,GEESINK NORBA LTD,0
South Ribble Borough Council,http://statistics.data.gov.uk/id/local-authority/30UE,Central Support Services,Miscellaneous Expenses,4821,PROFESSIONAL SERVICES WITH REGARD TO WAINHOMES V SOS & SRBC - CHAIN HOUSE LANE (S288 CHALLENGE),15/09/2021,0000471700,"2,100.00",Revenue,Giles Cannock,0
South Ribble Borough Council,http://statistics.data.gov.uk/id/local-authority/30UE,Recreation & Sport,Services,4510,August 2021 Instructor Fee,22/09/2021,0000472005,290.00,Revenue,Gillian Hall,0
South Ribble Borough Council,http://statistics.data.gov.uk/id/local-authority/30UE,Capital,Capital Other Land & Bldgs,C230,"McKenzie Arms Site, PR5 6EE, Professional Services - Procurement, Project Management and Quantity Surveying Services",08/09/2021,0000471320,"2,100.00",Revenue,Gosling Consulting Limited,0
South Ribble Borough Council,http://statistics.data.gov.uk/id/local-authority/30UE,Capital,Capital Other Land & Bldgs,C230,"McKenzie Arms Site, Bamber Bridge, PR5 6EE, Professional Services � Procurement, Project Management and Quantity Surveying Services",15/09/2021,0000471573,"2,900.00",Revenue,Gosling Consulting Limited,0
South Ribble Borough Council,http://statistics.data.gov.uk/id/local-authority/30UE,Capital,Capital Other Land & Bldgs,C230,Works - Provision of Quantity Surveyor Services and Procurement Support Services to RIBA Stage 3 / Leyland Town Deal Project,08/09/2021,0000471574,"5,530.00",Revenue,Gosling Consulting Limited,0
South Ribble Borough Council,http://statistics.data.gov.uk/id/local-authority/30UE,Capital,Capital Other Land & Bldgs,C230,"Please provide services to Worden Hall PM and QS support RIBA stage 4-7 � As per contract terms, Fee proposal and draw down schedule",08/09/2021,0000471575,"3,850.00",Revenue,Gosling Consulting Limited,0
South Ribble Borough Council,http://statistics.data.gov.uk/id/local-authority/30UE,Democratic Represent and  Mgnt,Training Expenses,1406,NAME REDACTED TO ATTEND A VIRTUAL EVENT - 'NATIONAL HOMELESSNESS EVENT 2022' ON 25 JANUARY 2022,29/09/2021,0000472097,289.00,Revenue,Government Events,0
South Ribble Borough Council,http://statistics.data.gov.uk/id/local-authority/30UE,Capital,Capital Other Land & Bldgs,C230,"(Stages 4-7) for the delivery of the Worden Hall refurbishment as per tender as per NAME REDACTED Cost - 27,500.00 Code  - 207050 C230",01/09/2021,0000471470,"22,000.00",Revenue,GRAHAM SCHOFIELD ASSOCIATES,0
South Ribble Borough Council,http://statistics.data.gov.uk/id/local-authority/30UE,Corporate Management,Services,4512,Additional fee for the 2019-20 audit,22/09/2021,0000471402,"14,209.00",Revenue,Grant Thornton UK LLP,0
South Ribble Borough Council,http://statistics.data.gov.uk/id/local-authority/30UE,Corporate Management,Services,4512,Additional fee for the 2018-19 audit,22/09/2021,0000471410,"34,500.00",Revenue,Grant Thornton UK LLP,0
South Ribble Borough Council,http://statistics.data.gov.uk/id/local-authority/30UE,Corporate Management,Services,4512,SRBC HB Subsidy Audit 2019/20,15/09/2021,0000471698,"13,750.00",Revenue,Grant Thornton UK LLP,0
South Ribble Borough Council,http://statistics.data.gov.uk/id/local-authority/30UE,Short Term Creditors,Balance Sheet,0001,,08/09/2021,0000471657,406.31,Revenue,H B Panelcraft Ltd,0
South Ribble Borough Council,http://statistics.data.gov.uk/id/local-authority/30UE,Community Development,Services,4575,"To provide 896 lunches for week ending 13th August for the HAF project for Bamber Bridge, Penwortham and Leyland",08/09/2021,0000471662,"3,584.00",Revenue,Halls Bakery Limited,0
South Ribble Borough Council,http://statistics.data.gov.uk/id/local-authority/30UE,Community Development,Services,4575,"To provide 896 lunches for week ending 20 August for the HAF project for Bamber Bridge, Penwortham and Leyland",08/09/2021,0000471663,"3,584.00",Revenue,Halls Bakery Limited,0
South Ribble Borough Council,http://statistics.data.gov.uk/id/local-authority/30UE,Community Development,Services,4575,To provide 896 lunches for the week ending 27 August for the Holiday Hunger project,08/09/2021,0000471664,"3,584.00",Revenue,Halls Bakery Limited,0
South Ribble Borough Council,http://statistics.data.gov.uk/id/local-authority/30UE,Community Development,Services,4575,"To provide 896 lunches for week ending 6th August for the HAF project for Bamber Bridge, Penwortham and Leyland",22/09/2021,0000471945,"3,584.00",Revenue,Halls Bakery Limited,0
South Ribble Borough Council,http://statistics.data.gov.uk/id/local-authority/30UE,Central Support Services,Communications & Comuting,4241,"Imperago Flexitime & Door Access Licenses (300) Contract 01/02/20 - 31/01/23, Imperago Door Access Control Licenses (200)",29/09/2021,0000471733,"15,865.65",Revenue,HFX LTD,0
South Ribble Borough Council,http://statistics.data.gov.uk/id/local-authority/30UE,Central Support Services,Communications & Comuting,4241,"Imperago Flexitime & Door Access Licenses (300) Contract 01/02/20 - 31/01/23, Imperago Door Access Control Licenses (200)",22/09/2021,0000471734,"1,623.01",Revenue,HFX LTD,0
South Ribble Borough Council,http://statistics.data.gov.uk/id/local-authority/30UE,Recreation & Sport,Miscellaneous Expenses,488B,QTR3 mgmt fee,15/09/2021,0000471529,"1,000.00",Revenue,HIGHER WALTON COMMUNITY CENTRE,0
South Ribble Borough Council,http://statistics.data.gov.uk/id/local-authority/30UE,Recreation & Sport,Premises Repair & Mtne,2020,Replacement glass mirror at Bamber Bridge leisure centre dance studio. 160.00 as per NAME REDACTED request,22/09/2021,0000471907,320.00,Revenue,HIGHER WALTON GLASS LTD (INCORP STEVE TI,0
South Ribble Borough Council,http://statistics.data.gov.uk/id/local-authority/30UE,Homelessness,Grants & Subscriptions,4730,"DJ 10/02/21 - 16/02/21, 6 nights @ 49 per night",01/09/2021,0000471168,392.00,Revenue,HILL VIEW (PRIVATE HOTEL),0
South Ribble Borough Council,http://statistics.data.gov.uk/id/local-authority/30UE,Homelessness,Contractors Chges,5311,AD placement wef Thursday 29.4.2021 (cont from Liverpool placement) agreed continuation,01/09/2021,0000471238,565.00,Revenue,HILL VIEW (PRIVATE HOTEL),0
South Ribble Borough Council,http://statistics.data.gov.uk/id/local-authority/30UE,Homelessness,Grants & Subscriptions,4730,SS placement for the Easter Weekend 1-5.4.2021 5 nights @ 55/night,01/09/2021,0000471239,275.00,Revenue,HILL VIEW (PRIVATE HOTEL),0
South Ribble Borough Council,http://statistics.data.gov.uk/id/local-authority/30UE,Homelessness,Contractors Chges,5311,AD placement wef Thursday 29.4.2021 (cont from Liverpool placement) agreed continuation,01/09/2021,0000471240,540.00,Revenue,HILL VIEW (PRIVATE HOTEL),0
South Ribble Borough Council,http://statistics.data.gov.uk/id/local-authority/30UE,Short Term Creditors,Balance Sheet,0140,,08/09/2021,0000471526,628.00,Revenue,HM REVENUE & CUSTOMS,0
South Ribble Borough Council,http://statistics.data.gov.uk/id/local-authority/30UE,Central Support Services,Services,4570,"Review AD naming for NAME REDACTED and prepare script, Prepare and review for change, Remote Support after change",29/09/2021,0000471512,"1,950.00",Revenue,Hybrit Services Limited,0
South Ribble Borough Council,http://statistics.data.gov.uk/id/local-authority/30UE,Central Support Services,Communications & Comuting,4246,Desktop troubleshooting (Non Consecutive) 10 x 300.00,29/09/2021,0000471576,"3,000.00",Revenue,Hybrit Services Limited,0
South Ribble Borough Council,http://statistics.data.gov.uk/id/local-authority/30UE,Central Support Services,Communications & Comuting,4269,"Anywhere365 Corporate SA (yearly), Anywhere365 Extension Window SA (yearly), Enterprise feature pack SA (yearly)",29/09/2021,0000471796,"3,958.00",Revenue,Hybrit Services Limited,0
South Ribble Borough Council,http://statistics.data.gov.uk/id/local-authority/30UE,Open Spaces,Expenses,4657,4x 1200H Prosafe self-closing gate c/w posts and fittings in (Black 9005) @ 836.65 each. Total 3346.60.,08/09/2021,0000471336,"3,346.20",Revenue,IAE,0
South Ribble Borough Council,http://statistics.data.gov.uk/id/local-authority/30UE,Community Development,Miscellaneous Expenses,4842,HAF promotional photography,29/09/2021,0000472151,375.00,Revenue,IAN ROBINSON,0
South Ribble Borough Council,http://statistics.data.gov.uk/id/local-authority/30UE,Central Support Services,Furniture- Equip & Materials,4010,"PM1H0000RD PRINTER : Evolis Primacy Duplex Expert Fire, Red",22/09/2021,0000471969,"1,238.00",Revenue,ID Card Centre Limited,0
South Ribble Borough Council,http://statistics.data.gov.uk/id/local-authority/30UE,Central Support Services,Furniture- Equip & Materials,4010,ID-SUPPORT Annual Technical Support Plan for Evolis Printer,22/09/2021,0000471969,150.00,Revenue,ID Card Centre Limited,0
South Ribble Borough Council,http://statistics.data.gov.uk/id/local-authority/30UE,Central Support Services,Furniture- Equip & Materials,4010,Shipping,22/09/2021,0000471969,7.95,Revenue,ID Card Centre Limited,0
South Ribble Borough Council,http://statistics.data.gov.uk/id/local-authority/30UE,Central Support Services,Communications & Comuting,4248,"Software licences, support and maintenance for the Council�s Uniform suite for the period 1st April 2021 to 30th September 2021",01/09/2021,0000470913,"36,475.24",Revenue,IDOX PLC,0
South Ribble Borough Council,http://statistics.data.gov.uk/id/local-authority/30UE,Central Support Services,Communications & Comuting,4247,"PSN Code of Connection IT Health Check, as per quote",15/09/2021,0000468430,"1,088.00",Revenue,Intertek,0
South Ribble Borough Council,http://statistics.data.gov.uk/id/local-authority/30UE,Central Support Services,Communications & Comuting,4247,"PSN Code of Connection IT Health Check, as per quote",15/09/2021,0000471129,425.00,Revenue,Intertek,0
South Ribble Borough Council,http://statistics.data.gov.uk/id/local-authority/30UE,Central Support Services,Communications & Comuting,4247,"PSN Code of Connection IT Health Check, as per quote",15/09/2021,0000471511,"4,712.00",Revenue,Intertek,0
South Ribble Borough Council,http://statistics.data.gov.uk/id/local-authority/30UE,Capital,Capital Other Land & Bldgs,C230,"Architects Fees for Stages 5 and 6, Hurst Grange Coach House, Penwortham",08/09/2021,0000471477,"1,498.00",Revenue,Ivan Wilson Architect,0
South Ribble Borough Council,http://statistics.data.gov.uk/id/local-authority/30UE,Recreation & Sport,Services,4510,August 2021 Instructor Fee,29/09/2021,0000471830,276.00,Revenue,Jake Fisher,0
South Ribble Borough Council,http://statistics.data.gov.uk/id/local-authority/30UE,Open Spaces,Expenses,4657,STAINLESS STEEL SPLASH BACKS Custom Supply & Install for Hurst Grange Coach House as per NAME REDACTED request,01/09/2021,0000471387,812.00,Revenue,James Taylor (Business & Catering) Ltd,0
South Ribble Borough Council,http://statistics.data.gov.uk/id/local-authority/30UE,Surplus or Deficit on Trading,Energy Costs,2308,"Old Coach House, Hurst Grange Park, Hill Road, Penwortham Preston PR1 9XH",15/09/2021,0000471732,400.00,Revenue,Jane Needham Ltd,0
South Ribble Borough Council,http://statistics.data.gov.uk/id/local-authority/30UE,Capital,Capital Other Land & Bldgs,C230,"Works - Fire safety - Civic, Depot, Kingsfold This order is linked to the urgent decision waiver, granted to bring all 3 sites into compliance.",15/09/2021,0000471612,"27,491.64",Revenue,JFN Integrated Solutions Ltd,0
South Ribble Borough Council,http://statistics.data.gov.uk/id/local-authority/30UE,Capital,Capital Other Land & Bldgs,C230,"Works - Fire safety - Civic, Depot, Kingsfold This order is linked to the urgent decision waiver, granted to bring all 3 sites into compliance.",15/09/2021,0000471632,"54,748.64",Revenue,JFN Integrated Solutions Ltd,0
South Ribble Borough Council,http://statistics.data.gov.uk/id/local-authority/30UE,Open Spaces,Expenses,4657,"Up to 200T PAS 100 20mm grade compost delivered to Haig Avenue, Leyland",22/09/2021,0000471828,314.88,Revenue,JOHN COOPER RECYCLING LTD,0
South Ribble Borough Council,http://statistics.data.gov.uk/id/local-authority/30UE,Recreation & Sport,Furniture- Equip & Materials,4010,11x learners to complete pool plant refresher/update over 2 days - Monday 26th July and Friday 30th July 2021,01/09/2021,0000471400,"1,155.00",Revenue,Johnson Training Ltd,0
South Ribble Borough Council,http://statistics.data.gov.uk/id/local-authority/30UE,Recreation & Sport,Premises Repair & Mtne,2020,FA269 Saver Evacuation Chair x1 600.00 each,15/09/2021,0000471083,600.00,Revenue,JP LENNARD LTD,0
South Ribble Borough Council,http://statistics.data.gov.uk/id/local-authority/30UE,Recreation & Sport,Premises Repair & Mtne,2020,SE375 Long Handle c/w Plastic Scoop x1 41.65 each,15/09/2021,0000471083,41.65,Revenue,JP LENNARD LTD,0
South Ribble Borough Council,http://statistics.data.gov.uk/id/local-authority/30UE,Recreation & Sport,Premises Repair & Mtne,2020,Delivery 23.30,15/09/2021,0000471083,23.30,Revenue,JP LENNARD LTD,0
South Ribble Borough Council,http://statistics.data.gov.uk/id/local-authority/30UE,Recreation & Sport,Furniture- Equip & Materials,4010,beemat folding gym incline wedge 260.61 carriage 30.00,22/09/2021,0000471801,279.41,Revenue,JP LENNARD LTD,0
South Ribble Borough Council,http://statistics.data.gov.uk/id/local-authority/30UE,Capital,Capital Other Land & Bldgs,C230,Provision of MEP Consultant Services (Stages 4-7) for the delivery of the Worden Hall refurbishment as per tender as per NAME REDACTED request,01/09/2021,0000471465,"16,800.00",Revenue,JRB Environmental Design Limited,0
South Ribble Borough Council,http://statistics.data.gov.uk/id/local-authority/30UE,Open Spaces,Services,4570,"Grass cutting - Longton Bypass, Samlesbury and end of M65/Lostock Lane (June 2021)",08/09/2021,0000471412,"3,650.00",Revenue,KAYS TRAFFIC MANAGEMENT LTD,0
South Ribble Borough Council,http://statistics.data.gov.uk/id/local-authority/30UE,Open Spaces,Furniture- Equip & Materials,4040,x45 Herras fence panels including feet and clips from Haig Avenue Playground @ 30.00 per panel.,08/09/2021,0000471212,"1,350.00",Revenue,KOMPAN LTD,0
South Ribble Borough Council,http://statistics.data.gov.uk/id/local-authority/30UE,Capital,Capital Other Land & Bldgs,C230,Design and build of new playground at Haig Avenue Leyland,08/09/2021,0000471631,"119,546.68",Revenue,KOMPAN LTD,0
South Ribble Borough Council,http://statistics.data.gov.uk/id/local-authority/30UE,Central Support Services,Furniture- Equip & Materials,4040,Battery Charger/ Starter Sealey start 660,29/09/2021,0000472092,299.95,Revenue,lancashire Bus and Truck Parts Limited,0
South Ribble Borough Council,http://statistics.data.gov.uk/id/local-authority/30UE,Central Support Services,Furniture- Equip & Materials,4040,4000 litres Bulk AdBlue @0.26ppl,29/09/2021,0000471730,"1,040.00",Revenue,LANCASHIRE OILS LTD,0
South Ribble Borough Council,http://statistics.data.gov.uk/id/local-authority/30UE,Waste Collection,Waste Disposal,5112,May 2021 - Incineration of Clinical Waste,29/09/2021,0000471824,662.60,Revenue,LANCASHIRE TEACHING FT,0
South Ribble Borough Council,http://statistics.data.gov.uk/id/local-authority/30UE,Capital,Deferrd Chgs-Improvemnt Grants,C570,DFG WORKS TO SUPPLY AND INSTALL SPECIALIST BATH AS PER QUOTE BY NAME REDACTED AT ADDRESS REDACTED,15/09/2021,0000471691,"9,478.00",Revenue,LANCS COUNTY COUNCIL,0
South Ribble Borough Council,http://statistics.data.gov.uk/id/local-authority/30UE,Capital,Deferrd Chgs-Improvemnt Grants,C570,DFG WORKS TO SUPPLY AND INSTALL HOIST EQUIPMENT SUPPLIED BY PRISM MEDICAL OF 4132.32 AT ADDRESS REDACTED,15/09/2021,0000471692,"4,132.32",Revenue,LANCS COUNTY COUNCIL,0
South Ribble Borough Council,http://statistics.data.gov.uk/id/local-authority/30UE,Trade Waste,Waste Disposal,5412,"Quarter 1 Disposal Fee, Landfill Tax & 5% Admin Fee",29/09/2021,0000471815,"59,819.78",Revenue,LANCS COUNTY COUNCIL,0
South Ribble Borough Council,http://statistics.data.gov.uk/id/local-authority/30UE,Capital,Deferrd Chgs-Improvemnt Grants,C570,"REMOVE BEDROOM TRACK FROM ADDRESS REDACTED, SUPPLY, INSTALL HOIST EQUIPMENT AT ADDRESS REDACTED",22/09/2021,0000471840,"1,528.51",Revenue,LANCS COUNTY COUNCIL,0
South Ribble Borough Council,http://statistics.data.gov.uk/id/local-authority/30UE,Parking Services,Services,4516,Back office and TEC levy processing April 2021 - June 2021,22/09/2021,0000472000,424.05,Revenue,LANCS COUNTY COUNCIL,0
South Ribble Borough Council,http://statistics.data.gov.uk/id/local-authority/30UE,Capital,Deferrd Chgs-Improvemnt Grants,C570,"DFG WORK TO SUPPLY AND INSTALL HOISTING EQUIPMENT AT ADDRESS REDACTED, CLIENT HAS CONTRIBUTION OF 160.52",22/09/2021,0000472001,"3,312.53",Revenue,LANCS COUNTY COUNCIL,0
South Ribble Borough Council,http://statistics.data.gov.uk/id/local-authority/30UE,Parking Services,Services,4516,Back office charges July 2021-September 2021,22/09/2021,0000472022,338.10,Revenue,LANCS COUNTY COUNCIL,0
South Ribble Borough Council,http://statistics.data.gov.uk/id/local-authority/30UE,Elections,Miscellaneous Expenses,4421,PPE for polling stations procured by LCC on behalf of NAME REDACTED,29/09/2021,0000472142,"1,931.75",Revenue,LANCS COUNTY COUNCIL,0
South Ribble Borough Council,http://statistics.data.gov.uk/id/local-authority/30UE,Elections,Miscellaneous Expenses,4421,.,29/09/2021,0000472142,"1,931.75",Revenue,LANCS COUNTY COUNCIL,0
South Ribble Borough Council,http://statistics.data.gov.uk/id/local-authority/30UE,Elections,Miscellaneous Expenses,4422,PPE for postal vote opening procured by LCC on behalf of NAME REDACTED,29/09/2021,0000472142,83.28,Revenue,LANCS COUNTY COUNCIL,0
South Ribble Borough Council,http://statistics.data.gov.uk/id/local-authority/30UE,Elections,Miscellaneous Expenses,4422,.,29/09/2021,0000472142,83.27,Revenue,LANCS COUNTY COUNCIL,0
South Ribble Borough Council,http://statistics.data.gov.uk/id/local-authority/30UE,Elections,Miscellaneous Expenses,4424,PPE for the verification and count procured by LCC on behalf of NAME REDACTED,29/09/2021,0000472142,444.58,Revenue,LANCS COUNTY COUNCIL,0
South Ribble Borough Council,http://statistics.data.gov.uk/id/local-authority/30UE,Elections,Miscellaneous Expenses,4424,.,29/09/2021,0000472142,444.58,Revenue,LANCS COUNTY COUNCIL,0
South Ribble Borough Council,http://statistics.data.gov.uk/id/local-authority/30UE,Central Support Services,Furniture- Equip & Materials,4040,1 service kit including oil YD19AUT JFC17202,08/09/2021,0000471550,401.46,Revenue,LANCS DAF,0
South Ribble Borough Council,http://statistics.data.gov.uk/id/local-authority/30UE,Central Support Services,Furniture- Equip & Materials,4040,1 full service kit including oil YA19 NKD JFC17236,15/09/2021,0000471729,451.41,Revenue,LANCS DAF,0
South Ribble Borough Council,http://statistics.data.gov.uk/id/local-authority/30UE,Central Support Services,Furniture- Equip & Materials,4040,1 x set of front drop links  1 x set of anti roll bar bushes PF18JOV JFC17285,22/09/2021,0000471856,509.90,Revenue,LANCS DAF,0
South Ribble Borough Council,http://statistics.data.gov.uk/id/local-authority/30UE,Open Spaces,Services,4510,Annual Management,08/09/2021,0000471603,"1,250.00",Revenue,LANCS WILDLIFE TRUST,0
South Ribble Borough Council,http://statistics.data.gov.uk/id/local-authority/30UE,Economic Development,Miscellaneous Expenses,4851,"Support for the digital inclusion project, booklet production",22/09/2021,0000471835,800.00,Revenue,Laptopbits Ltd,0
South Ribble Borough Council,http://statistics.data.gov.uk/id/local-authority/30UE,Recreation & Sport,Communications & Comuting,4243,"Contract Description � Leisure management software, Proposed Contract Period  3 years, Annual Value of Contract- 41,292.48 licence fees",01/09/2021,0000470977,550.00,Revenue,Legend Software,0
South Ribble Borough Council,http://statistics.data.gov.uk/id/local-authority/30UE,Recreation & Sport,Communications & Comuting,4243,"Contract Description � Leisure management software, Proposed Contract Period  3 years , Annual Value of Contract- 41,292.48 licence fees",08/09/2021,0000470978,"2,648.25",Revenue,Legend Software,0
South Ribble Borough Council,http://statistics.data.gov.uk/id/local-authority/30UE,Recreation & Sport,Communications & Comuting,4243,"Contract Description � Leisure management software, Proposed Contract Period  3 years, Annual Value of Contract- 41,292.48 licence fees",15/09/2021,0000471380,"1,636.80",Revenue,Legend Software,0
South Ribble Borough Council,http://statistics.data.gov.uk/id/local-authority/30UE,Recreation & Sport,Communications & Comuting,4243,"Contract Description � Leisure management software, Proposed Contract Period  3 years, Annual Value of Contract- 41,292.48 licence fees",15/09/2021,0000471642,"2,648.25",Revenue,Legend Software,0
South Ribble Borough Council,http://statistics.data.gov.uk/id/local-authority/30UE,Recreation & Sport,Communications & Comuting,4243,"Contract Description � Leisure management software, Proposed Contract Period  3 years, Annual Value of Contract- 41,292.48 licence fees",15/09/2021,0000471643,550.00,Revenue,Legend Software,0
South Ribble Borough Council,http://statistics.data.gov.uk/id/local-authority/30UE,Recreation & Sport,Services,4510,"Production of decarbonisation plans, including costs and methodology, for South Ribble Civic Centre, Moss Side, Bamber Bridge, Leyland leisure",15/09/2021,0000471627,"22,680.00",Revenue,LEISURE ENERGY,0
South Ribble Borough Council,http://statistics.data.gov.uk/id/local-authority/30UE,Recreation & Sport,Services,4510,LMI703087 BAMBER BRIDGE LEISURE CENTRE June 2021 LES MILLS PLUS 380.00 BODYCOMBAT BODYPUMP,22/09/2021,0000469269,266.00,Revenue,Les Mills Fitness UK LTD,0
South Ribble Borough Council,http://statistics.data.gov.uk/id/local-authority/30UE,Recreation & Sport,Services,4510,"BAMBER BRIDGE LEISURE CENTRE JULY 2021: LES MILLS PLUS, BODYCOMBAT, BODYPUMP, RPM, VIRTUAL BUNDLE",22/09/2021,0000469989,612.00,Revenue,Les Mills Fitness UK LTD,0
South Ribble Borough Council,http://statistics.data.gov.uk/id/local-authority/30UE,Elections,Miscellaneous Expenses,4421,Use of the venue for the Lancashire County Council and Police and Crime Commissioner Elections on 6 May 2021. Access required 6.15 to 22.15,15/09/2021,0000468844,125.00,Revenue,Leyland Fox Lane and Sports and Social Club,0
South Ribble Borough Council,http://statistics.data.gov.uk/id/local-authority/30UE,Elections,Miscellaneous Expenses,4421,.,15/09/2021,0000468844,125.00,Revenue,Leyland Fox Lane and Sports and Social Club,0
South Ribble Borough Council,http://statistics.data.gov.uk/id/local-authority/30UE,Local Tax Collection,Services,4541,EMPTY HOME REVIEW JULY 2021,15/09/2021,0000471771,"8,308.93",Revenue,LIBERATA UK LTD,0
South Ribble Borough Council,http://statistics.data.gov.uk/id/local-authority/30UE,Central Support Services,Furniture- Equip & Materials,4010,PADLOCKS  - SQUIRE 660 TO PASS KEY 10,29/09/2021,0000471790,273.17,Revenue,M A C BUILDING PRODUCTS LTD,0
South Ribble Borough Council,http://statistics.data.gov.uk/id/local-authority/30UE,Open Spaces,Expenses,4657,"200T Grade 1 topsoil delivered to Haig Avenue Green, Leyland",01/09/2021,0000471340,920.00,Revenue,M C & M A STEWART HAULAGE LTD,0
South Ribble Borough Council,http://statistics.data.gov.uk/id/local-authority/30UE,Open Spaces,Expenses,4657,"40T 10mm gravel delivered to Haig Avenue Green, Leyland, PR25 2TW",01/09/2021,0000471341,"1,055.76",Revenue,M C & M A STEWART HAULAGE LTD,0
South Ribble Borough Council,http://statistics.data.gov.uk/id/local-authority/30UE,Recreation & Sport,Furniture- Equip & Materials,4040,Various tools/equipment for Mobile Cycle Workshop.,22/09/2021,0000471713,276.03,Revenue,M&J Distributors Ltd,0
South Ribble Borough Council,http://statistics.data.gov.uk/id/local-authority/30UE,Capital,Deferrd Chgs-Improvemnt Grants,C570,"DFG WORKS FOR RAMP ACCESS AT ADDRESS REDACTED. New progress property 50% to be paid via grant, 50% via New Progress",08/09/2021,0000471144,"1,630.00",Revenue,MAHONEY CONTRACTORS LTD,0
South Ribble Borough Council,http://statistics.data.gov.uk/id/local-authority/30UE,Capital,Deferrd Chgs-Improvemnt Grants,C570,"DFG WORKS FOR LEVEL ACCESS BATHROOM AT ADDRESS REDACTED. NEW PROGRESS PROPERTY, 50% TO BE PAID",15/09/2021,0000471754,"2,951.75",Revenue,MAHONEY CONTRACTORS LTD,0
South Ribble Borough Council,http://statistics.data.gov.uk/id/local-authority/30UE,Capital,Deferrd Chgs-Improvemnt Grants,C570,DFG WORKS FOR LEVEL ACCESS BATHROOM AT ADDRESS REDACTED. NEW PROGRESS PROPERTY SO 50% TO BE PAID,15/09/2021,0000471789,"3,346.16",Revenue,MAHONEY CONTRACTORS LTD,0
South Ribble Borough Council,http://statistics.data.gov.uk/id/local-authority/30UE,Community Safety Services,Services,4541,Consultancy - per NAME REDACTED,08/09/2021,0000471390,"4,125.00",Revenue,Manus Review and Consulting Limited,0
South Ribble Borough Council,http://statistics.data.gov.uk/id/local-authority/30UE,Parking Services,Services,4570,"Return of overpayment, less owed",22/09/2021,0000471896,"67,707.42",Revenue,Marston Holdings,0
South Ribble Borough Council,http://statistics.data.gov.uk/id/local-authority/30UE,Capital,Capital Other Land & Bldgs,C230,Provision of fee proposal for the McKenzie Arms Passivhaus development as agreed with NAMES REDACTED,15/09/2021,0000471707,"2,500.00",Revenue,Mead Energy Architectural Design Ltd,0
South Ribble Borough Council,http://statistics.data.gov.uk/id/local-authority/30UE,Central Support Services,Training Expenses,1400,11 x Level 3 Emergency First Aid at Work and Forestry Training Courses on 27th September 2021 at the Civic Centre.,22/09/2021,0000471521,"1,089.00",Revenue,MediArb Training,0
South Ribble Borough Council,http://statistics.data.gov.uk/id/local-authority/30UE,Community Development,Services,4575,Lunch boxes for Tuesday 3rd through to Friday 6th August as per agreed for the HAF project,22/09/2021,0000471787,600.00,Revenue,Miss Lisa Mallinson,0
South Ribble Borough Council,http://statistics.data.gov.uk/id/local-authority/30UE,Community Development,Services,4575,To provide lunches for the HAF project for the week ending 27 August 2021,22/09/2021,0000471942,600.00,Revenue,Miss Lisa Mallinson,0
South Ribble Borough Council,http://statistics.data.gov.uk/id/local-authority/30UE,Community Development,Services,4575,To provide lunch for the HAF project for week ending 20 August 2021,29/09/2021,0000471994,720.00,Revenue,Miss Lisa Mallinson,0
South Ribble Borough Council,http://statistics.data.gov.uk/id/local-authority/30UE,Community Development,Services,4575,To provide food for HAF project for week ending 13 August,29/09/2021,0000471995,840.00,Revenue,Miss Lisa Mallinson,0
South Ribble Borough Council,http://statistics.data.gov.uk/id/local-authority/30UE,Central Support Services,Communications & Comuting,4241,"1 x Anker USB C Hub, PowerExpand 6-in-1 USB C PD Ethernet Hub, HDMI, 1Gbps Ethernet, USB-C Data Port, 2 USB 3.0 Data Ports",22/09/2021,0000471154,851.42,Revenue,MYPREMIER LTD,0
South Ribble Borough Council,http://statistics.data.gov.uk/id/local-authority/30UE,Central Support Services,Communications & Comuting,4241,"Magic Keyboard - British English, Dell 45W / 65W Auto Adjustable USB C Type Ac Adapter, AboveTEK Tablet Wall Mount",22/09/2021,0000471284,343.13,Revenue,MYPREMIER LTD,0
South Ribble Borough Council,http://statistics.data.gov.uk/id/local-authority/30UE,Central Support Services,Communications & Comuting,4241,"Dell 45W / 65W Auto Adjustable USB - C Type Ac Adapter, 65W Microsoft Surface, Sandberg Powerbank 10000mAh 2 x USB-A 5 Year Warranty",22/09/2021,0000471455,"1,242.26",Revenue,MYPREMIER LTD,0
South Ribble Borough Council,http://statistics.data.gov.uk/id/local-authority/30UE,Suspended Items,Expenses,4630,Various Sports Equipment for HAF Programme,01/09/2021,0000471253,397.66,Revenue,Net World Sports,0
South Ribble Borough Council,http://statistics.data.gov.uk/id/local-authority/30UE,Service Management & Support,Services,4570,"Call out to repair fault with diesel pump, Supply and fit new S/B Coupling, Supply and fit new nozzle spout, Supply and fit new scuff guard",15/09/2021,0000471580,480.00,Revenue,NIXON PUMPS,0
South Ribble Borough Council,http://statistics.data.gov.uk/id/local-authority/30UE,Central Support Services,Furniture- Equip & Materials,4040,SCARAB MINI SWEEPER BRUSHES - POLY/WIRE MIX MATHIEU-0120089,22/09/2021,0000471581,"1,035.00",Revenue,NORTHERN MUNICIPAL SPARES LTD,0
South Ribble Borough Council,http://statistics.data.gov.uk/id/local-authority/30UE,Central Support Services,Furniture- Equip & Materials,4040,4 ROW CHANNEL BRUSH - C/W 4 NUTS/BOLTS 835/66,22/09/2021,0000471582,281.16,Revenue,NORTHERN MUNICIPAL SPARES LTD,0
South Ribble Borough Council,http://statistics.data.gov.uk/id/local-authority/30UE,Parking Services,Services,4514,Deployment of Officers - August 2021,29/09/2021,0000471906,"1,146.10",Revenue,NSL LTD,0
South Ribble Borough Council,http://statistics.data.gov.uk/id/local-authority/30UE,Parking Services,Miscellaneous Expenses,4855,Cash collection and Ringo Charges- August 2021,29/09/2021,0000471906,377.57,Revenue,NSL LTD,0
South Ribble Borough Council,http://statistics.data.gov.uk/id/local-authority/30UE,Parking Services,Miscellaneous Expenses,4855,Ringo Convenience Charge- August 2021,29/09/2021,0000471906,212.20,Revenue,NSL LTD,0
South Ribble Borough Council,http://statistics.data.gov.uk/id/local-authority/30UE,Open Spaces,Services,4526,Price per contracted itemised collection,29/09/2021,0000471906,41.94,Revenue,NSL LTD,0
South Ribble Borough Council,http://statistics.data.gov.uk/id/local-authority/30UE,Central Support Services,Communications & Comuting,4243,"Service Item Combined Services, Managed Support Service Agreement, Technical Support Service Agreement",15/09/2021,0000471307,"4,945.15",Revenue,NVIRON LTD,0
South Ribble Borough Council,http://statistics.data.gov.uk/id/local-authority/30UE,Central Support Services,Communications & Comuting,4243,"Service Item Combined Services, Managed Support Service Agreement, Technical Support Service Agreement",01/09/2021,0000471342,"2,542.72",Revenue,NVIRON LTD,0
South Ribble Borough Council,http://statistics.data.gov.uk/id/local-authority/30UE,Central Support Services,Communications & Comuting,4247,1 x 6 month FW Contract extension,22/09/2021,0000471832,"3,051.26",Revenue,NVIRON LTD,0
South Ribble Borough Council,http://statistics.data.gov.uk/id/local-authority/30UE,Central Support Services,Communications & Comuting,4247,1 x 6 month FW Contract extension,29/09/2021,0000472038,"3,051.26",Revenue,NVIRON LTD,0
South Ribble Borough Council,http://statistics.data.gov.uk/id/local-authority/30UE,Community Development,Miscellaneous Expenses,4842,Products for school readiness activities,08/09/2021,0000471583,522.00,Revenue,O`pen Office Solutions Ltd,0
South Ribble Borough Council,http://statistics.data.gov.uk/id/local-authority/30UE,Central Support Services,Premises Repair & Mtne,2020,To survey the low level roof ( civic centre) following the solar panels being fitted. as per NAME REDACTED request visit,01/09/2021,0000471413,295.00,Revenue,OMEGA RED GROUP LTD,0
South Ribble Borough Council,http://statistics.data.gov.uk/id/local-authority/30UE,Community Development,Grants & Subscriptions,4730,Holiday Hunger food for summer 2021,08/09/2021,0000471644,"22,200.00",Revenue,Oncore Trading,0
South Ribble Borough Council,http://statistics.data.gov.uk/id/local-authority/30UE,Parking Services,Furniture- Equip & Materials,4040,50 PCN Roles at 15.20 per roll,29/09/2021,0000471585,760.00,Revenue,Parking and Secure Documents,0
South Ribble Borough Council,http://statistics.data.gov.uk/id/local-authority/30UE,Central Support Services,Cleaning & Domestic Supplies,2711,BA030-75 JANGRO GLASS & MIRROR CLEANER 750ML 12 @ 1.31,01/09/2021,0000471214,9.17,Revenue,Pattersons (Bristol) Ltd,0
South Ribble Borough Council,http://statistics.data.gov.uk/id/local-authority/30UE,Central Support Services,Cleaning & Domestic Supplies,2711,BC015-75 JANGRO THICKENED BLEACH 750ML 36 @ 0.50,01/09/2021,0000471214,18.00,Revenue,Pattersons (Bristol) Ltd,0
South Ribble Borough Council,http://statistics.data.gov.uk/id/local-authority/30UE,Central Support Services,Cleaning & Domestic Supplies,2711,AA201 JANGRO MICRO MINI TOILET ROLL 100M X 90MM (24) 5 @ 10.59,01/09/2021,0000471214,52.95,Revenue,Pattersons (Bristol) Ltd,0
South Ribble Borough Council,http://statistics.data.gov.uk/id/local-authority/30UE,Central Support Services,Cleaning & Domestic Supplies,2711,CG106-Y EXEL MICROFIBRE SUPER CLOTH 2 @ 3.90,01/09/2021,0000471214,7.80,Revenue,Pattersons (Bristol) Ltd,0
South Ribble Borough Council,http://statistics.data.gov.uk/id/local-authority/30UE,Central Support Services,Cleaning & Domestic Supplies,2711,"HL005-Y JANGRO SOFT EASIGRIP SPONGE SCOURING PAD, YELLOW/WHITE 5 @ 1.30",01/09/2021,0000471214,2.60,Revenue,Pattersons (Bristol) Ltd,0
South Ribble Borough Council,http://statistics.data.gov.uk/id/local-authority/30UE,Central Support Services,Cleaning & Domestic Supplies,2711,AE234 TORK S-FOLD HAND TOWEL 1PLY BLUE (4000SHT) 5 @ 13.25,01/09/2021,0000471214,66.25,Revenue,Pattersons (Bristol) Ltd,0
South Ribble Borough Council,http://statistics.data.gov.uk/id/local-authority/30UE,Central Support Services,Cleaning & Domestic Supplies,2711,CM180 JANGRO REFUSE SACKS 18X29X39 180G HEAVY DUTY BLACK (200) 5 @ 11.75,01/09/2021,0000471214,58.75,Revenue,Pattersons (Bristol) Ltd,0
South Ribble Borough Council,http://statistics.data.gov.uk/id/local-authority/30UE,Central Support Services,Cleaning & Domestic Supplies,2711,CG106-G EXEL MICROFIBRE SUPER CLOTH 40X 40CM GREEN (10) 2 @ 3.90,01/09/2021,0000471214,7.80,Revenue,Pattersons (Bristol) Ltd,0
South Ribble Borough Council,http://statistics.data.gov.uk/id/local-authority/30UE,Central Support Services,Cleaning & Domestic Supplies,2711,HL005-B SOFT EASIGRIP SPONGE SCOURING PAD BLUE/WHITE (10) 5 @ 1.30,01/09/2021,0000471214,2.60,Revenue,Pattersons (Bristol) Ltd,0
South Ribble Borough Council,http://statistics.data.gov.uk/id/local-authority/30UE,Central Support Services,Cleaning & Domestic Supplies,2711,BC045-1 JANGRO TOILET & WASHROOM CLEANER DESCALER  1 LTR 24 @ 0.94,01/09/2021,0000471214,22.56,Revenue,Pattersons (Bristol) Ltd,0
South Ribble Borough Council,http://statistics.data.gov.uk/id/local-authority/30UE,Central Support Services,Cleaning & Domestic Supplies,2711,DG154-M JANGRO LATEX DISP. GLOVES POWDER FREE NATURAL MEDIUM (100) 6 @ 2.87,01/09/2021,0000471214,46.20,Revenue,Pattersons (Bristol) Ltd,0
South Ribble Borough Council,http://statistics.data.gov.uk/id/local-authority/30UE,Central Support Services,Cleaning & Domestic Supplies,2711,CG106-P EXEL MICROFIBRE SUPER CLOTH 40X 40CM PINK (10) 2 @ 3.90,01/09/2021,0000471214,7.80,Revenue,Pattersons (Bristol) Ltd,0
South Ribble Borough Council,http://statistics.data.gov.uk/id/local-authority/30UE,Central Support Services,Cleaning & Domestic Supplies,2711,DG150-L JANGRO PROFESSIONAL NITRILE DISPOSABLE GLOVE POWDER FREE BLUE LARGE x 100 6 @ 3.52,01/09/2021,0000471214,55.50,Revenue,Pattersons (Bristol) Ltd,0
South Ribble Borough Council,http://statistics.data.gov.uk/id/local-authority/30UE,Central Support Services,Cleaning & Domestic Supplies,2711,BC040-1 JANGRO PERFUMED TOILET CLEANER 1LTR 24 @ 0.90,01/09/2021,0000471214,21.60,Revenue,Pattersons (Bristol) Ltd,0
South Ribble Borough Council,http://statistics.data.gov.uk/id/local-authority/30UE,Central Support Services,Cleaning & Domestic Supplies,2711,BB034-5 JANGRO CONCENTRATED GREEN DETERGENT 20% 5LTR 4 @ 3.30,01/09/2021,0000471214,13.20,Revenue,Pattersons (Bristol) Ltd,0
South Ribble Borough Council,http://statistics.data.gov.uk/id/local-authority/30UE,Central Support Services,Cleaning & Domestic Supplies,2711,BA050-5 Cleaner Disinfectant 2 @ 8.50,01/09/2021,0000471214,17.00,Revenue,Pattersons (Bristol) Ltd,0
South Ribble Borough Council,http://statistics.data.gov.uk/id/local-authority/30UE,Central Support Services,Cleaning & Domestic Supplies,2711,HA015-G Mop Heads 10 @ 1.20,01/09/2021,0000471214,12.00,Revenue,Pattersons (Bristol) Ltd,0
South Ribble Borough Council,http://statistics.data.gov.uk/id/local-authority/30UE,Central Support Services,Cleaning & Domestic Supplies,2711,HA015-R Mop Heads 10 @ 1.20,01/09/2021,0000471214,8.40,Revenue,Pattersons (Bristol) Ltd,0
South Ribble Borough Council,http://statistics.data.gov.uk/id/local-authority/30UE,Central Support Services,Cleaning & Domestic Supplies,2711,FA991 Jangro Microfibre Bags For Vacuums (Pack of 10) 1 @ 8.00,01/09/2021,0000471214,8.00,Revenue,Pattersons (Bristol) Ltd,0
South Ribble Borough Council,http://statistics.data.gov.uk/id/local-authority/30UE,Central Support Services,Cleaning & Domestic Supplies,2711,Toilet brush,01/09/2021,0000471214,4.00,Revenue,Pattersons (Bristol) Ltd,0
South Ribble Borough Council,http://statistics.data.gov.uk/id/local-authority/30UE,Central Support Services,Cleaning & Domestic Supplies,2711,DG154-M JANGRO LATEX DISP. GLOVES POWDER FREE NATURAL MEDIUM (100) 10 @ 2.87,29/09/2021,0000471362,64.71,Revenue,Pattersons (Bristol) Ltd,0
South Ribble Borough Council,http://statistics.data.gov.uk/id/local-authority/30UE,Central Support Services,Cleaning & Domestic Supplies,2711,BB034-5 JANGRO CONCENTRATED GREEN DETERGENT 20% 5LTR 2 @ 3.30,29/09/2021,0000471362,6.60,Revenue,Pattersons (Bristol) Ltd,0
South Ribble Borough Council,http://statistics.data.gov.uk/id/local-authority/30UE,Central Support Services,Cleaning & Domestic Supplies,2711,HA015-B Mop Heads 10 @ 0.90,29/09/2021,0000471362,9.00,Revenue,Pattersons (Bristol) Ltd,0
South Ribble Borough Council,http://statistics.data.gov.uk/id/local-authority/30UE,Central Support Services,Cleaning & Domestic Supplies,2711,SB-00010 Sebo Hoover Bags (10 Pack) 1 @ 9.00,29/09/2021,0000471362,9.00,Revenue,Pattersons (Bristol) Ltd,0
South Ribble Borough Council,http://statistics.data.gov.uk/id/local-authority/30UE,Central Support Services,Cleaning & Domestic Supplies,2711,Temp025 Surface Wipes 30 @ 3.00,29/09/2021,0000471362,45.60,Revenue,Pattersons (Bristol) Ltd,0
South Ribble Borough Council,http://statistics.data.gov.uk/id/local-authority/30UE,Central Support Services,Cleaning & Domestic Supplies,2711,Temp013 3PLY GENERAL PURPOSE TYPE I FACE MASK (50) 50 @ 10.00,29/09/2021,0000471362,115.50,Revenue,Pattersons (Bristol) Ltd,0
South Ribble Borough Council,http://statistics.data.gov.uk/id/local-authority/30UE,Capital,Deferrd Chgs-Improvemnt Grants,C570,DFG WORK TO ADAPT AND INSTALL A LEVEL ACCESS SHOWER AT ADDRESS REDACTED AS PER SRBC SPEC,15/09/2021,0000471687,"4,067.76",Revenue,Paul Rothwell and Sons,0
South Ribble Borough Council,http://statistics.data.gov.uk/id/local-authority/30UE,Central Support Services,Premises Repair & Mtne,2020,Moss Side Depot - Grounds Garage in the compound. External work light above the RH roller shutter door has blown as per NAME REDACTED,22/09/2021,0000471812,320.00,Revenue,PDP PROPERTY SERVICES LTD,0
South Ribble Borough Council,http://statistics.data.gov.uk/id/local-authority/30UE,Open Spaces,Expenses,4657,Please supply fire extinguishers to Hurst grange Park as detailed in your quotation letter dated 4th August.,08/09/2021,0000471415,426.35,Revenue,PENNINE FIRE & SAFETY LIMITED,0
South Ribble Borough Council,http://statistics.data.gov.uk/id/local-authority/30UE,Open Spaces,Expenses,4657,less amount credited,08/09/2021,0000471415,-1.66,Revenue,PENNINE FIRE & SAFETY LIMITED,0
South Ribble Borough Council,http://statistics.data.gov.uk/id/local-authority/30UE,Surplus or Deficit on Trading,Premises Repair & Mtne,2037,Annual Contract 2021/2022 for the inspection of Portable Fire Extinguishers and Fire Blankets at Brickcroft Visitor`s centre South Ribble Museum,29/09/2021,0000471599,22.40,Revenue,PENNINE FIRE & SAFETY LIMITED,0
South Ribble Borough Council,http://statistics.data.gov.uk/id/local-authority/30UE,Surplus or Deficit on Trading,Premises Repair & Mtne,2037,Annual Contract for 2021/2022 for the inspection of the Portable Fire Extinguishers and Fire Blankets at Civic Centre,29/09/2021,0000471599,197.75,Revenue,PENNINE FIRE & SAFETY LIMITED,0
South Ribble Borough Council,http://statistics.data.gov.uk/id/local-authority/30UE,Surplus or Deficit on Trading,Premises Repair & Mtne,2037,Annual Contract for 2021/2022 for the inspection of the Portable Fire Extinguishers and Fire Blankets at Higher Walton Community Centre,29/09/2021,0000471599,7.10,Revenue,PENNINE FIRE & SAFETY LIMITED,0
South Ribble Borough Council,http://statistics.data.gov.uk/id/local-authority/30UE,Surplus or Deficit on Trading,Premises Repair & Mtne,2037,Annual Contract for 2021/2022 for the inspection of the Portable Fire Extinguishers and Fire Blankets at Holland House Farm Pavillion,29/09/2021,0000471599,3.20,Revenue,PENNINE FIRE & SAFETY LIMITED,0
South Ribble Borough Council,http://statistics.data.gov.uk/id/local-authority/30UE,Economic Development,Premises Repair & Mtne,2037,Annual Contract for 2021/2022 for the inspection of the Portable Fire Extinguishers and Fire Blankets at Leyland Indoor Market,29/09/2021,0000471599,42.30,Revenue,PENNINE FIRE & SAFETY LIMITED,0
South Ribble Borough Council,http://statistics.data.gov.uk/id/local-authority/30UE,Surplus or Deficit on Trading,Premises Repair & Mtne,2037,Annual Contract for 2021/2022 for the inspection of the Portable Fire Extinguishers and Fire Blankets at Middleforth Garage Toilet Block,29/09/2021,0000471599,3.20,Revenue,PENNINE FIRE & SAFETY LIMITED,0
South Ribble Borough Council,http://statistics.data.gov.uk/id/local-authority/30UE,Surplus or Deficit on Trading,Premises Repair & Mtne,2037,Annual Contract for 2021/2022 for the inspection of the Portable Fire Extinguishers and Fire Blankets at Moss Side Community Centre,29/09/2021,0000471599,13.50,Revenue,PENNINE FIRE & SAFETY LIMITED,0
South Ribble Borough Council,http://statistics.data.gov.uk/id/local-authority/30UE,Central Support Services,Premises Repair & Mtne,2037,Annual Contract for 2021/2022 for the inspection of the Portable Fire Extinguishers and Fire Blankets at Moss Side Depot,29/09/2021,0000471599,115.90,Revenue,PENNINE FIRE & SAFETY LIMITED,0
South Ribble Borough Council,http://statistics.data.gov.uk/id/local-authority/30UE,Surplus or Deficit on Trading,Premises Repair & Mtne,2037,Annual Contract for 2021/2022 for the inspection of the Portable Fire Extinguishers and Fire Blankets at Ranger's Office,29/09/2021,0000471599,3.20,Revenue,PENNINE FIRE & SAFETY LIMITED,0
South Ribble Borough Council,http://statistics.data.gov.uk/id/local-authority/30UE,Surplus or Deficit on Trading,Premises Repair & Mtne,2037,Annual Contract for 2021/2022 for the inspection of the Portable Fire Extinguishers and Fire Blankets at Welcome Hall Community Centre,29/09/2021,0000471599,10.30,Revenue,PENNINE FIRE & SAFETY LIMITED,0
South Ribble Borough Council,http://statistics.data.gov.uk/id/local-authority/30UE,Surplus or Deficit on Trading,Premises Repair & Mtne,2037,Annual Contract for 2021/2022 for the inspection of the Portable Fire Extinguishers and Fire Blankets at Worden Arts and Craft Centre,29/09/2021,0000471599,76.80,Revenue,PENNINE FIRE & SAFETY LIMITED,0
South Ribble Borough Council,http://statistics.data.gov.uk/id/local-authority/30UE,Surplus or Deficit on Trading,Premises Repair & Mtne,2037,Annual Contract for 2021/2022 for the inspection of the Portable Fire Extinguishers and Fire Blankets at Hurst Grange Park,29/09/2021,0000471599,21.90,Revenue,PENNINE FIRE & SAFETY LIMITED,0
South Ribble Borough Council,http://statistics.data.gov.uk/id/local-authority/30UE,Recycling,Printing- Stat & Office Expens,4127,Provision & posting of garden waste permits 2021/22 and hosting of permit management website.,15/09/2021,0000471697,763.42,Revenue,Permiserv Ltd,0
South Ribble Borough Council,http://statistics.data.gov.uk/id/local-authority/30UE,Recycling,Printing- Stat & Office Expens,4127,Provision & posting of garden waste permits 2021/22 and hosting of permit management website.,22/09/2021,0000471905,395.92,Revenue,Permiserv Ltd,0
South Ribble Borough Council,http://statistics.data.gov.uk/id/local-authority/30UE,Central Support Services,Furniture- Equip & Materials,4040,1 x 205L barrel 5/30 engine oil,22/09/2021,0000471726,338.30,Revenue,PILKINGTON OILS,0
South Ribble Borough Council,http://statistics.data.gov.uk/id/local-authority/30UE,Central Support Services,Salaries,1121,Planning Enforcement Services,29/09/2021,0000471946,"1,710.00",Revenue,Planning Control & PACE Solutions,0
South Ribble Borough Council,http://statistics.data.gov.uk/id/local-authority/30UE,Economic Development,Miscellaneous Expenses,4848,CIVIC CENTRE SIGNAGE - NEW LOGO,01/09/2021,0000471344,"4,106.10",Revenue,Poppy Signs Ltd,0
South Ribble Borough Council,http://statistics.data.gov.uk/id/local-authority/30UE,Democratic Represent and  Mgnt,Miscellaneous Expenses,4883,2021 / 2022 music licence fees for the banqueting suite at the Civic Centre,01/09/2021,0000471454,300.48,Revenue,PPL PRS,0
South Ribble Borough Council,http://statistics.data.gov.uk/id/local-authority/30UE,Economic Development,Miscellaneous Expenses,4883,"2021 / 2022 music licence fees for Leyland Market, Northcote Street, Leyland",01/09/2021,0000471454,808.76,Revenue,PPL PRS,0
South Ribble Borough Council,http://statistics.data.gov.uk/id/local-authority/30UE,Recreation & Sport,Miscellaneous Expenses,4851,"PPL & PRS Licence Fee 12/04/21 - 11/04/22: Leyland Leisure Centre, Bamber Bridge, Penwortham Leisure Centre, South Ribble Tennis Centre",08/09/2021,0000471467,"3,881.91",Revenue,PPL PRS,0
South Ribble Borough Council,http://statistics.data.gov.uk/id/local-authority/30UE,Recreation & Sport,Miscellaneous Expenses,4851,"PPL & PRS Licence Fee 12/04/21 - 11/04/22: Leyland Leisure Centre, Bamber Bridge, Penwortham Leisure Centre, South Ribble Tennis Centre",08/09/2021,0000471467,"4,974.93",Revenue,PPL PRS,0
South Ribble Borough Council,http://statistics.data.gov.uk/id/local-authority/30UE,Recreation & Sport,Miscellaneous Expenses,4851,"PPL & PRS Licence Fee 12/04/21 - 11/04/22: Leyland Leisure Centre, Bamber Bridge, Penwortham Leisure Centre, South Ribble Tennis Centre",08/09/2021,0000471467,783.27,Revenue,PPL PRS,0
South Ribble Borough Council,http://statistics.data.gov.uk/id/local-authority/30UE,Recreation & Sport,Miscellaneous Expenses,4851,"PPL & PRS Licence Fee 12/04/21 - 11/04/22: Leyland Leisure Centre, Bamber Bridge, Penwortham Leisure Centre, South Ribble Tennis Centre",08/09/2021,0000471467,546.87,Revenue,PPL PRS,0
South Ribble Borough Council,http://statistics.data.gov.uk/id/local-authority/30UE,Central Support Services,Furniture- Equip & Materials,4040,PURSAN HAND GEL RUB - 500ml - 417054,01/09/2021,0000471365,569.52,Revenue,PREMIER OFFICE SUPPLES (UK) LTD,0
South Ribble Borough Council,http://statistics.data.gov.uk/id/local-authority/30UE,Homelessness,Communications & Comuting,4272,Sanctuary works CJ Boundary St,29/09/2021,0000472041,"1,634.50",Revenue,PRESTON CARE & REPAIR,0
South Ribble Borough Council,http://statistics.data.gov.uk/id/local-authority/30UE,Democratic Represent and  Mgnt,Miscellaneous Expenses,4851,Please print 70 copies of the story book (magazine saddle) as previously discussed.,29/09/2021,0000471598,499.10,Revenue,Preston City Council,0
South Ribble Borough Council,http://statistics.data.gov.uk/id/local-authority/30UE,Central Support Services,Services,4570,2 x Tyres YJ67BHY JFC17221,15/09/2021,0000471443,259.00,Revenue,PRESTON TYRE SPECIALISTS,0
South Ribble Borough Council,http://statistics.data.gov.uk/id/local-authority/30UE,Central Support Services,Services,4570,TR235,29/09/2021,0000471725,702.25,Revenue,PRESTON TYRE SPECIALISTS,0
South Ribble Borough Council,http://statistics.data.gov.uk/id/local-authority/30UE,Elections,Printing- Stat & Office Expens,4127,ANNUAL CANVASS 2021: PRINTING OF STAGE 1 CANVAS COMMUNICATIONS & ENVELOPES (IN LINE WITH A & B ON ORDER),01/09/2021,0000471305,"8,256.59",Revenue,PRINT IMAGE NETWORK LTD,0
South Ribble Borough Council,http://statistics.data.gov.uk/id/local-authority/30UE,Elections,Printing- Stat & Office Expens,4127,"ENVELOPE ORDER AS PER JOB REF: 8638 10,000 OUTER ENVELOPES AND 10,000 REPLY ENVELOPES",15/09/2021,0000471777,795.70,Revenue,PRINT IMAGE NETWORK LTD,0
South Ribble Borough Council,http://statistics.data.gov.uk/id/local-authority/30UE,Other Welfare Services,Grants & Subscriptions,4730,Contribution to Clare House,29/09/2021,0000472172,"1,000.00",Revenue,PROGRESS HOUSING GRP ref:DNSOU001,0
South Ribble Borough Council,http://statistics.data.gov.uk/id/local-authority/30UE,Open Spaces,Expenses,4657,Roundabout spare parts as per Quotation ref: 2107.30341-U2400-July. Including delivery,15/09/2021,0000471480,766.36,Revenue,PROLUDIC LTD,0
South Ribble Borough Council,http://statistics.data.gov.uk/id/local-authority/30UE,Open Spaces,Expenses,4657,1 x podseat/chains/brackets and fixings as per quotation 2106.30168 dated 30.6.21 including delivery,15/09/2021,0000471481,"2,522.48",Revenue,PROLUDIC LTD,0
South Ribble Borough Council,http://statistics.data.gov.uk/id/local-authority/30UE,Capital,Capital Other Land & Bldgs,C230,"Alteration, Adaption, Extension and Refurbishment Works - Hurst Grange Coach House, Penwortham",15/09/2021,0000471646,"107,676.65",Revenue,R Developments Ltd T/A Rosslee Construction Ltd,0
South Ribble Borough Council,http://statistics.data.gov.uk/id/local-authority/30UE,Short Term Creditors,Balance Sheet,0001,,29/09/2021,0000472193,562.12,Revenue,Reach Shared Services Limited,0
South Ribble Borough Council,http://statistics.data.gov.uk/id/local-authority/30UE,Surplus or Deficit on Trading,Premises Repair & Mtne,2020,Please attend Worden park to undertake 3x planned visits via tractor and pumping trailer following drain problems,01/09/2021,0000471392,550.00,Revenue,RED ROSE BUILDING MAINTENANCE,0
South Ribble Borough Council,http://statistics.data.gov.uk/id/local-authority/30UE,Surplus or Deficit on Trading,Premises Repair & Mtne,2020,"To landscape the rear garden @ north lodge, Worden park,. Machinery hire and labor.",01/09/2021,0000471393,"3,000.00",Revenue,RED ROSE BUILDING MAINTENANCE,0
South Ribble Borough Council,http://statistics.data.gov.uk/id/local-authority/30UE,Surplus or Deficit on Trading,Premises Repair & Mtne,2020,MATERIALS,01/09/2021,0000471393,"1,800.00",Revenue,RED ROSE BUILDING MAINTENANCE,0
South Ribble Borough Council,http://statistics.data.gov.uk/id/local-authority/30UE,Surplus or Deficit on Trading,Premises Repair & Mtne,2020,"Suspect collapsed drain, tractor and tanker to attend worden park Monday 16/08/21 to pump out manholes As Per NAME REDACTED",01/09/2021,0000471483,550.00,Revenue,RED ROSE BUILDING MAINTENANCE,0
South Ribble Borough Council,http://statistics.data.gov.uk/id/local-authority/30UE,Recreation & Sport,Premises Repair & Mtne,2020,Penwortham leisure centre � replace man hole cover and supply lifting irons. As per NAME REDACTED request,08/09/2021,0000471595,150.00,Revenue,RED ROSE BUILDING MAINTENANCE,0
South Ribble Borough Council,http://statistics.data.gov.uk/id/local-authority/30UE,Recreation & Sport,Premises Repair & Mtne,2020,materials,08/09/2021,0000471595,130.00,Revenue,RED ROSE BUILDING MAINTENANCE,0
South Ribble Borough Council,http://statistics.data.gov.uk/id/local-authority/30UE,Surplus or Deficit on Trading,Premises Repair & Mtne,2020,Please excavate & repair the suspected collapsed drain at worden park,08/09/2021,0000471596,"1,800.00",Revenue,RED ROSE BUILDING MAINTENANCE,0
South Ribble Borough Council,http://statistics.data.gov.uk/id/local-authority/30UE,Surplus or Deficit on Trading,Premises Repair & Mtne,2020,materials,08/09/2021,0000471596,600.00,Revenue,RED ROSE BUILDING MAINTENANCE,0
South Ribble Borough Council,http://statistics.data.gov.uk/id/local-authority/30UE,Surplus or Deficit on Trading,Premises Repair & Mtne,2020,"Landscaping works at Carr St Community Centre as per NAME REDACTED request, Removal of entrance gate & associated posts. ",29/09/2021,0000471871,750.00,Revenue,RED ROSE BUILDING MAINTENANCE,0
South Ribble Borough Council,http://statistics.data.gov.uk/id/local-authority/30UE,Surplus or Deficit on Trading,Premises Repair & Mtne,2020,labour,29/09/2021,0000471871,600.00,Revenue,RED ROSE BUILDING MAINTENANCE,0
South Ribble Borough Council,http://statistics.data.gov.uk/id/local-authority/30UE,Surplus or Deficit on Trading,Premises Repair & Mtne,2020,Please attend Worden park to undertake 3x planned visits via tractor and pumping trailer following drain problems,29/09/2021,0000471938,550.00,Revenue,RED ROSE BUILDING MAINTENANCE,0
South Ribble Borough Council,http://statistics.data.gov.uk/id/local-authority/30UE,Surplus or Deficit on Trading,Premises Repair & Mtne,2020,Please attend Worden park to undertake 3x planned visits via tractor and pumping trailer following drain problems,29/09/2021,0000471939,550.00,Revenue,RED ROSE BUILDING MAINTENANCE,0
South Ribble Borough Council,http://statistics.data.gov.uk/id/local-authority/30UE,Homelessness,Contractors Chges,5311,Oct to Dec,29/09/2021,0000472141,"5,624.90",Revenue,REDDY & CO,0
South Ribble Borough Council,http://statistics.data.gov.uk/id/local-authority/30UE,Recreation & Sport,Contract Hire & Operating Leas,3212,12 Months from 01/04/21 Transport arrangements for school swimming lessons,22/09/2021,0000469919,"3,200.00",Revenue,Redline Travel Ltd,0
South Ribble Borough Council,http://statistics.data.gov.uk/id/local-authority/30UE,Recreation & Sport,Contract Hire & Operating Leas,3212,12 Months from 01/04/21 Transport arrangements for school swimming lessons,22/09/2021,0000470015,"2,080.00",Revenue,Redline Travel Ltd,0
South Ribble Borough Council,http://statistics.data.gov.uk/id/local-authority/30UE,Central Support Services,Furniture- Equip & Materials,4040,1 set of slide blocks YD19 ATZ JFC 17096,29/09/2021,0000471872,525.67,Revenue,Refuse Vehicle Parts,0
South Ribble Borough Council,http://statistics.data.gov.uk/id/local-authority/30UE,Central Support Services,Furniture- Equip & Materials,4040,Yoke ram YA19 NJZ JFC 17270,29/09/2021,0000471872,792.20,Revenue,Refuse Vehicle Parts,0
South Ribble Borough Council,http://statistics.data.gov.uk/id/local-authority/30UE,Community Development,Services,4575,Boxes of food for HAF project 2-5 August,08/09/2021,0000471647,"3,270.00",Revenue,Relish Catering,0
South Ribble Borough Council,http://statistics.data.gov.uk/id/local-authority/30UE,Community Development,Services,4510,"To deliver sessions for the HAF project. 28 and 29 July at a cost of 560, 2-5 August at a cost of 1120 and 9-12 August at a cost of 1120",15/09/2021,0000471668,"2,800.00",Revenue,Reps Muay Thai Boxing,0
South Ribble Borough Council,http://statistics.data.gov.uk/id/local-authority/30UE,Capital,Capital Other Land & Bldgs,C230,"Description- 10000 ltrs kerosene to new tank @ worden arts and crafts centre, PR25 1DJ as per NAME REDACTED request",29/09/2021,0000472062,489.50,Revenue,RIBBLE FUEL OILS,0
South Ribble Borough Council,http://statistics.data.gov.uk/id/local-authority/30UE,Economic Development,Miscellaneous Expenses,4841,Advert in the Leyland Life magazine as per NAME REDACTED request Full page 280.00 for 3 months,29/09/2021,0000472063,280.00,Revenue,Ribble Publications Ltd,0
South Ribble Borough Council,http://statistics.data.gov.uk/id/local-authority/30UE,Waste Collection,Services,4541,Consultancy Services- review of options for the waste collection contract. Quote Reference: ED14989,08/09/2021,0000471403,"3,272.57",Revenue,RICARDO-AEA LIMITED,0
South Ribble Borough Council,http://statistics.data.gov.uk/id/local-authority/30UE,Central Support Services,Furniture- Equip & Materials,4036,EQV5 office suite,15/09/2021,0000471655,"9,276.16",Revenue,RICOH (UK) LTD,0
South Ribble Borough Council,http://statistics.data.gov.uk/id/local-authority/30UE,Community Development,Services,4510,Mobile Climbing for HAF Delivery between Monday 26th July and Friday 13th August.,01/09/2021,0000471434,"2,550.00",Revenue,RiderEvolution Ltd,0
South Ribble Borough Council,http://statistics.data.gov.uk/id/local-authority/30UE,Elections,Communications & Comuting,4291,POSTAGE - BUSINESS AS USUAL (NON ELECTION),15/09/2021,0000471778,594.56,Revenue,ROYAL MAIL GROUP PLC,0
South Ribble Borough Council,http://statistics.data.gov.uk/id/local-authority/30UE,Recreation & Sport,Furniture- Equip & Materials,4040,926155 (S) 5 Star Correction Roller 926155 2 @ 1.15,22/09/2021,0000470017,2.30,Revenue,Rytetype Limited,0
South Ribble Borough Council,http://statistics.data.gov.uk/id/local-authority/30UE,Recreation & Sport,Furniture- Equip & Materials,4040,638469 5 Star Value Perm Marker Bullet Tip Blk 4 @ 2.29,22/09/2021,0000470017,9.16,Revenue,Rytetype Limited,0
South Ribble Borough Council,http://statistics.data.gov.uk/id/local-authority/30UE,Recreation & Sport,Furniture- Equip & Materials,4040,482128 Bic Cristal Fun Ball Pen Asstd 20 895793 2 @ 5.05,22/09/2021,0000470017,10.10,Revenue,Rytetype Limited,0
South Ribble Borough Council,http://statistics.data.gov.uk/id/local-authority/30UE,Recreation & Sport,Furniture- Equip & Materials,4040,918672 5 Star F/Strip 20Sheet Mtl Stapler Black 4 @ 3.29,22/09/2021,0000470017,13.16,Revenue,Rytetype Limited,0
South Ribble Borough Council,http://statistics.data.gov.uk/id/local-authority/30UE,Recreation & Sport,Furniture- Equip & Materials,4040,296204 5 Star Staples 26/6 Box 5000(553809) 2 @ 0.89,22/09/2021,0000470017,1.78,Revenue,Rytetype Limited,0
South Ribble Borough Council,http://statistics.data.gov.uk/id/local-authority/30UE,Recreation & Sport,Furniture- Equip & Materials,4040,295969 5 Star Easy Tear Clear Tape 24mmx66m 1 @ 2.85,22/09/2021,0000470017,2.85,Revenue,Rytetype Limited,0
South Ribble Borough Council,http://statistics.data.gov.uk/id/local-authority/30UE,Recreation & Sport,Furniture- Equip & Materials,4040,297870 (S) 300mm / 12 inch Plastic Shatterproof Ruler 2 @ 0.20,22/09/2021,0000470017,0.40,Revenue,Rytetype Limited,0
South Ribble Borough Council,http://statistics.data.gov.uk/id/local-authority/30UE,Recreation & Sport,Furniture- Equip & Materials,4040,906071 5 Star LPouch A4 150Mic Pk100 1 @ 8.99,22/09/2021,0000470017,8.99,Revenue,Rytetype Limited,0
South Ribble Borough Council,http://statistics.data.gov.uk/id/local-authority/30UE,Recreation & Sport,Furniture- Equip & Materials,4040,918826 5 Star 2Hole 30Sheet Punch Metal Black 3 @ 4.19,22/09/2021,0000470017,12.57,Revenue,Rytetype Limited,0
South Ribble Borough Council,http://statistics.data.gov.uk/id/local-authority/30UE,Recreation & Sport,Furniture- Equip & Materials,4040,296484 5 Star RubberBands Assorted 454g Bag 1 @ 2.95,22/09/2021,0000470017,2.95,Revenue,Rytetype Limited,0
South Ribble Borough Council,http://statistics.data.gov.uk/id/local-authority/30UE,Recreation & Sport,Furniture- Equip & Materials,4040,912998 5 Star Re-Move Notes 3x5 Neon Asst Pk12 2 @ 5.39,22/09/2021,0000470017,10.78,Revenue,Rytetype Limited,0
South Ribble Borough Council,http://statistics.data.gov.uk/id/local-authority/30UE,Recreation & Sport,Furniture- Equip & Materials,4040,108233 5 Star Glue Stick Large 40gms 2 @ 2.45,22/09/2021,0000470017,4.90,Revenue,Rytetype Limited,0
South Ribble Borough Council,http://statistics.data.gov.uk/id/local-authority/30UE,Recreation & Sport,Furniture- Equip & Materials,4040,A4 (S) A4 Laser / Copier / Printer Paper 4 @11.99,22/09/2021,0000470017,47.96,Revenue,Rytetype Limited,0
South Ribble Borough Council,http://statistics.data.gov.uk/id/local-authority/30UE,Recreation & Sport,Furniture- Equip & Materials,4040,48622 (S) C4 Envelope 90g White Window s/s (2735) Pack=250 2@ 9.99,22/09/2021,0000470017,19.98,Revenue,Rytetype Limited,0
South Ribble Borough Council,http://statistics.data.gov.uk/id/local-authority/30UE,Recreation & Sport,Furniture- Equip & Materials,4040,901813 5 Star Clear Ball Pen Black 4 @ 3.49,22/09/2021,0000470017,13.96,Revenue,Rytetype Limited,0
South Ribble Borough Council,http://statistics.data.gov.uk/id/local-authority/30UE,Recreation & Sport,Furniture- Equip & Materials,4040,938627 5 Star Office Highlighters Wallet 8 Asst 2 @ 1.96,22/09/2021,0000470017,3.92,Revenue,Rytetype Limited,0
South Ribble Borough Council,http://statistics.data.gov.uk/id/local-authority/30UE,Recreation & Sport,Furniture- Equip & Materials,4040,912947 5 Star Wirebound Notebook 50lf A4 Ruled 0.5 @ 9.95,22/09/2021,0000470017,4.98,Revenue,Rytetype Limited,0
South Ribble Borough Council,http://statistics.data.gov.uk/id/local-authority/30UE,Recreation & Sport,Furniture- Equip & Materials,4040,E-55315EN Energizer 3 LED Metal 3AAA Torch 1 @ 6.09,22/09/2021,0000470017,6.09,Revenue,Rytetype Limited,0
South Ribble Borough Council,http://statistics.data.gov.uk/id/local-authority/30UE,Recreation & Sport,Furniture- Equip & Materials,4040,E-11027DR Ordofix LAF Spine lbl BK 60X390mm PK10 1 @ 5.85,22/09/2021,0000470017,5.85,Revenue,Rytetype Limited,0
South Ribble Borough Council,http://statistics.data.gov.uk/id/local-authority/30UE,Recreation & Sport,Furniture- Equip & Materials,4040,295160 5 Star A4 5 Part Divider Set 5 @ 0.26,22/09/2021,0000470017,1.30,Revenue,Rytetype Limited,0
South Ribble Borough Council,http://statistics.data.gov.uk/id/local-authority/30UE,Recreation & Sport,Furniture- Equip & Materials,4040,295179 5 Star A4 10 Part Divider Set 8 @ 0.36,22/09/2021,0000470017,2.88,Revenue,Rytetype Limited,0
South Ribble Borough Council,http://statistics.data.gov.uk/id/local-authority/30UE,Recreation & Sport,Furniture- Equip & Materials,4040,464343 5 Star Premier A4 5Part Index MCol Mylar 2 @ 0.79,22/09/2021,0000470017,1.58,Revenue,Rytetype Limited,0
South Ribble Borough Council,http://statistics.data.gov.uk/id/local-authority/30UE,Recreation & Sport,Furniture- Equip & Materials,4040,113469 Snopake ZippaBag S A4Plus Ast Pk25 12814 1 @ 32.69,22/09/2021,0000470017,32.69,Revenue,Rytetype Limited,0
South Ribble Borough Council,http://statistics.data.gov.uk/id/local-authority/30UE,Recreation & Sport,Furniture- Equip & Materials,4040,297013 5 Star Office Punched Pckt A4 Emb Pk100 2 @ 2.49,22/09/2021,0000470017,4.98,Revenue,Rytetype Limited,0
South Ribble Borough Council,http://statistics.data.gov.uk/id/local-authority/30UE,Recreation & Sport,Furniture- Equip & Materials,4040,164334 Rexel Momentum X410 CC Shredder UK 1 @ 82.00,22/09/2021,0000470017,82.00,Revenue,Rytetype Limited,0
South Ribble Borough Council,http://statistics.data.gov.uk/id/local-authority/30UE,Community Development,Miscellaneous Expenses,4851,Grant of 1000 towards Covid vulnerable project,29/09/2021,0000472139,"1,000.00",Revenue,Samlesbury Hall Trust,0
South Ribble Borough Council,http://statistics.data.gov.uk/id/local-authority/30UE,Recreation & Sport,Premises Repair & Mtne,2021,"2021 / 2022 annual contract, 4 visits per year for the maintenance of the synthetic football pitches South Ribble Tennis Centre.",01/09/2021,0000471395,520.00,Revenue,S & C Slatter Limited,0
South Ribble Borough Council,http://statistics.data.gov.uk/id/local-authority/30UE,Open Spaces,Expenses,4657,Drainage investigations at Hurst Grange Park Coach House as per quote dated 01.08.2019,15/09/2021,0000470761,"2,450.00",Revenue,Sapphire Utility Solutions Limited,0
South Ribble Borough Council,http://statistics.data.gov.uk/id/local-authority/30UE,Open Spaces,Expenses,4657,"Urban recycler with main line camera system for 3 days, Tarn Wood, Howick Moor Lane, Penwortham",08/09/2021,0000470816,"8,220.00",Revenue,Sapphire Utility Solutions Limited,0
South Ribble Borough Council,http://statistics.data.gov.uk/id/local-authority/30UE,Open Spaces,Expenses,4657,"Robotic cutter for 1 shift, Hurst Grange Park, Penwortham",08/09/2021,0000470816,950.00,Revenue,Sapphire Utility Solutions Limited,0
South Ribble Borough Council,http://statistics.data.gov.uk/id/local-authority/30UE,Open Spaces,Services,4570,"EXCAVATE PIPE, INSTALL MANHOLE AS PER SUPPLIED SPEC AND JET TRACE AND CCTV UPSTREAM PIPE.",08/09/2021,0000470817,"9,891.34",Revenue,Sapphire Utility Solutions Limited,0
South Ribble Borough Council,http://statistics.data.gov.uk/id/local-authority/30UE,Central Support Services,Salaries,1121,COST OF ENGAGING AGENCY LOCUM SOLICITOR FOR 4 DAYS PER WEEK FROM 7 SEPTEMBER 2021 UNTIL CHRISTMAS 2021,29/09/2021,0000472064,"1,830.84",Revenue,SELLICK PARTNERSHIP LTD,0
South Ribble Borough Council,http://statistics.data.gov.uk/id/local-authority/30UE,Central Support Services,Salaries,1121,COST OF ENGAGING AGENCY LOCUM SOLICITOR FOR 4 DAYS PER WEEK FROM 7 SEPTEMBER 2021 UNTIL CHRISTMAS 2021,29/09/2021,0000472065,"1,695.75",Revenue,SELLICK PARTNERSHIP LTD,0
South Ribble Borough Council,http://statistics.data.gov.uk/id/local-authority/30UE,Capital,Capital Other Land & Bldgs,C230,CDM Principal Designer Duties for Hurst Grange Park Coach House,22/09/2021,0000471804,"1,300.00",Revenue,SkW,0
South Ribble Borough Council,http://statistics.data.gov.uk/id/local-authority/30UE,Corporate Management,Furniture- Equip & Materials,4010,1000 x 60ml hand sanitiser @ 0.80 each - Covid Team,15/09/2021,0000471024,800.00,Revenue,SMART IMAGE WORKWEAR,0
South Ribble Borough Council,http://statistics.data.gov.uk/id/local-authority/30UE,Recreation & Sport,Services,4510,SRBC Leisure Uniform,08/09/2021,0000471366,"4,201.80",Revenue,SMART IMAGE WORKWEAR,0
South Ribble Borough Council,http://statistics.data.gov.uk/id/local-authority/30UE,Recreation & Sport,Services,4510,SRBC Leisure Uniform,01/09/2021,0000471367,680.40,Revenue,SMART IMAGE WORKWEAR,0
South Ribble Borough Council,http://statistics.data.gov.uk/id/local-authority/30UE,Central Support Services,Communications & Comuting,4243,"720 x Cyber resilience pro, 1 x LCS silver, 1 x PC Mimecast consulting services, 2000 x partner managed migration simply migrate client",29/09/2021,0000471825,"21,521.90",Revenue,SOFTCAT LIMITED,0
South Ribble Borough Council,http://statistics.data.gov.uk/id/local-authority/30UE,Recreation & Sport,Miscellaneous Expenses,4866,Leisure Operating,15/09/2021,0000471693,"555,134.00",Revenue,South Ribble Leisure Ltd,0
South Ribble Borough Council,http://statistics.data.gov.uk/id/local-authority/30UE,Central Support Services,Services,4570,Spec repair VX18 KLC JFC17089,08/09/2021,0000471469,"3,318.00",Revenue,Southfield RCV Services Limited,0
South Ribble Borough Council,http://statistics.data.gov.uk/id/local-authority/30UE,Central Support Services,Contract Hire & Operating Leas,3212,Hire of VN12LBY from 30.04.21 to 28.05.21 (4 weeks at 750 per week),08/09/2021,0000471471,"3,000.00",Revenue,Southfield RCV Services Limited,0
South Ribble Borough Council,http://statistics.data.gov.uk/id/local-authority/30UE,Central Support Services,Contract Hire & Operating Leas,3212,Hire of VN12LBY from 31.05.21 to 24.06.21 (3 weeks and 4 days at 750 per week),08/09/2021,0000471472,"2,850.00",Revenue,Southfield RCV Services Limited,0
South Ribble Borough Council,http://statistics.data.gov.uk/id/local-authority/30UE,Central Support Services,Contract Hire & Operating Leas,3212,Hire of VN12LBY from 01.04.21-29.04.21 (4 weeks at 750 per week),08/09/2021,0000471473,"3,000.00",Revenue,Southfield RCV Services Limited,0
South Ribble Borough Council,http://statistics.data.gov.uk/id/local-authority/30UE,Central Support Services,Contract Hire & Operating Leas,3212,Hire of VN12LBY from 02.07.21 to 30.07.21 (4 weeks at 750 per week),08/09/2021,0000471474,"3,000.00",Revenue,Southfield RCV Services Limited,0
South Ribble Borough Council,http://statistics.data.gov.uk/id/local-authority/30UE,Central Support Services,Services,4570,1 Spec Repair VO65 KPX JFC16347,15/09/2021,0000471499,"1,777.50",Revenue,Southfield RCV Services Limited,0
South Ribble Borough Council,http://statistics.data.gov.uk/id/local-authority/30UE,Central Support Services,Contract Hire & Operating Leas,3212,Hire of Dennis Eagle Vehicle - VX13LSZ for 4 weeks from 02.08.21-27.08.21,29/09/2021,0000472086,"3,000.00",Revenue,Southfield RCV Services Limited,0
South Ribble Borough Council,http://statistics.data.gov.uk/id/local-authority/30UE,Community Development,Furniture- Equip & Materials,4010,IPAD SP1 Fully Automatic 14 @ 790 + VAT,29/09/2021,0000472045,"11,060.00",Revenue,SR8 Group Ltd,0
South Ribble Borough Council,http://statistics.data.gov.uk/id/local-authority/30UE,Community Development,Expenses,4630,"Hire of St James Lostock Hall`s Church Hall on 19 July, 2 August, 16th August 2021 for holiday hunger project at 102 each session.",22/09/2021,0000471811,306.00,Revenue,St James Church c/o Mr A Croft,0
South Ribble Borough Council,http://statistics.data.gov.uk/id/local-authority/30UE,Service Management & Support,Direct Transport Costs,3132,"16000 litres diesel @ 102.29ppl into the feeder tank at Unit 81 Bison Place, Moss Side",01/09/2021,0000471428,"15,328.50",Revenue,Standard Fuel Oils LtdMain,0
South Ribble Borough Council,http://statistics.data.gov.uk/id/local-authority/30UE,Service Management & Support,Direct Transport Costs,3134,2500 litres gas oil at 58.54ppl into tank 2,22/09/2021,0000471722,"1,463.50",Revenue,Standard Fuel Oils LtdMain,0
South Ribble Borough Council,http://statistics.data.gov.uk/id/local-authority/30UE,Service Management & Support,Direct Transport Costs,3132,"17000 litres diesel @103.80ppl into the feeder tank at Unit 81 Bison Place, Moss Side",22/09/2021,0000471723,"17,644.96",Revenue,Standard Fuel Oils LtdMain,0
South Ribble Borough Council,http://statistics.data.gov.uk/id/local-authority/30UE,Service Management & Support,Direct Transport Costs,3132,"17000 litres diesel @ 104.83ppl into the feeder tank at Unit 81 Bison Place, Moss Side",29/09/2021,0000472069,"18,064.31",Revenue,Standard Fuel Oils LtdMain,0
South Ribble Borough Council,http://statistics.data.gov.uk/id/local-authority/30UE,Service Management & Support,Direct Transport Costs,3134,1500 litres gas oil at 59.57ppl into tank 2,29/09/2021,0000472070,906.06,Revenue,Standard Fuel Oils LtdMain,0
South Ribble Borough Council,http://statistics.data.gov.uk/id/local-authority/30UE,Capital,Deferrd Chgs-Improvemnt Grants,C570,DFG WORK TO SUPPLY AND INSTALL A STAIRLIFT  AT ADDRESS REDACTED AS PER QUOTE SUPPLIED OF 5301.00,29/09/2021,0000472131,"5,301.00",Revenue,Stannah Lift Services Ltd,0
South Ribble Borough Council,http://statistics.data.gov.uk/id/local-authority/30UE,Capital,Deferrd Chgs-Improvemnt Grants,C570,DFG WORK TO SUPPLY AND INSTALL A STAIRLIFT AT ADDRESS REDACTED AS PER QUOTE SUPPLIED OF 5673.00,29/09/2021,0000472132,"4,177.86",Revenue,Stannah Lift Services Ltd,0
South Ribble Borough Council,http://statistics.data.gov.uk/id/local-authority/30UE,Capital,Capital Other Land & Bldgs,C230,"Project Management, construction of the new Playing pitch at Bamber Bridge Leisure Centre, support the preparation for delivery",08/09/2021,0000471397,"4,000.00",Revenue,Steve Wells Associates Ltd,0
South Ribble Borough Council,http://statistics.data.gov.uk/id/local-authority/30UE,Capital,Capital Other Land & Bldgs,C230,"Project Management, construction of the new Playing pitch at Bamber Bridge Leisure Centre, support the preparation for delivery",29/09/2021,0000472123,"4,000.00",Revenue,Steve Wells Associates Ltd,0
South Ribble Borough Council,http://statistics.data.gov.uk/id/local-authority/30UE,Capital,Deferrd Chgs-Improvemnt Grants,C570,"DFG WORK TO ADAPT A LEVEL ACCESS BATHROOM AS PER SRBC PLANS, 50% TO BE PAID BY YOUR HOUSING GROUP",15/09/2021,0000471780,"2,215.37",Revenue,Structec (NW) Limited,0
South Ribble Borough Council,http://statistics.data.gov.uk/id/local-authority/30UE,Community Development,Services,4575,Supply lunch boxes week commencing 26/07/21 270 boxes per day for 4 days Total 1080 boxes @ 5,22/09/2021,0000471461,"5,400.00",Revenue,Style Catering,0
South Ribble Borough Council,http://statistics.data.gov.uk/id/local-authority/30UE,Community Development,Services,4575,Supply lunch boxes week commencing 09/08/21 270 boxes per day for 4 days Total 1080 boxes @ 5,22/09/2021,0000471461,"5,400.00",Revenue,Style Catering,0
South Ribble Borough Council,http://statistics.data.gov.uk/id/local-authority/30UE,Community Development,Services,4575,Supply lunch boxes week commencing 16/08/21 270 boxes per day for 4 days Total 1080 boxes @ 5,22/09/2021,0000471461,"5,400.00",Revenue,Style Catering,0
South Ribble Borough Council,http://statistics.data.gov.uk/id/local-authority/30UE,Recreation & Sport,Furniture- Equip & Materials,4040,30 - puffin 20 - stage 1 30 - stage 2 30 - stage 3 20 - stage 4  10- stage 5 10- stage 6 20 gold 20 silver 20 bronze,01/09/2021,0000471398,432.60,Revenue,Swim England Trading Limited,0
South Ribble Borough Council,http://statistics.data.gov.uk/id/local-authority/30UE,Recreation & Sport,Furniture- Equip & Materials,4040,carriage,01/09/2021,0000471398,8.00,Revenue,Swim England Trading Limited,0
South Ribble Borough Council,http://statistics.data.gov.uk/id/local-authority/30UE,Recreation & Sport,Cleaning & Domestic Supplies,2711,"Duckling award 1 x5, 2 x5, 3 x5, 4 x5, Learn to swim 1 x15, 2 x15, 3 x15, 4 x15, 5 x15, 6 x15, 7 x15, Rainbow distance 10m x10",01/09/2021,0000471446,515.00,Revenue,Swim England Trading Limited,0
South Ribble Borough Council,http://statistics.data.gov.uk/id/local-authority/30UE,Recreation & Sport,Cleaning & Domestic Supplies,2711,CARRIAGE,01/09/2021,0000471446,13.50,Revenue,Swim England Trading Limited,0
South Ribble Borough Council,http://statistics.data.gov.uk/id/local-authority/30UE,Central Support Services,Furniture- Equip & Materials,4040,1 x light bar 4 x reverse sensors BX19EPC JFC16861,08/09/2021,0000471492,339.22,Revenue,TGS (UK) Ltd,0
South Ribble Borough Council,http://statistics.data.gov.uk/id/local-authority/30UE,Central Support Services,Communications & Comuting,4247,"100mb circuit South Ribble Borough Council, PR25 1DH to Leyland Market, Northcoat Street, PR25 2AA - Annual Rental 01/05/2021 - 30/04/2022",15/09/2021,0000471354,"2,270.17",Revenue,The Networking People (TNP) Ltd,0
South Ribble Borough Council,http://statistics.data.gov.uk/id/local-authority/30UE,Central Support Services,Communications & Comuting,4247,"Cloud Connect Guest Wi-FI - Annual Portal Charge per 1,000 concurrent 1 2,500.00 2,500.00 users, 01/08/2021 - 31/07/2022",15/09/2021,0000471355,"2,800.00",Revenue,The Networking People (TNP) Ltd,0
South Ribble Borough Council,http://statistics.data.gov.uk/id/local-authority/30UE,Central Support Services,Salaries,1121,"For Agency Staff, NAME REDACTED to work a total of 89 days. Start date of April 26th, until August 31st 2021",01/09/2021,0000471459,"1,400.00",Revenue,The Oyster Partnership,0
South Ribble Borough Council,http://statistics.data.gov.uk/id/local-authority/30UE,Central Support Services,Salaries,1121,"For Agency Staff, NAME REDACTED to work a total of 89 days. Start date of April 26th, until August 31st 2021",22/09/2021,0000471809,"1,400.00",Revenue,The Oyster Partnership,0
South Ribble Borough Council,http://statistics.data.gov.uk/id/local-authority/30UE,Central Support Services,Salaries,1121,"For Agency Staff, NAME REDACTED to work a total of 89 days. Start date of April 26th, until August 31st 2021",22/09/2021,0000471810,"1,400.00",Revenue,The Oyster Partnership,0
South Ribble Borough Council,http://statistics.data.gov.uk/id/local-authority/30UE,Central Support Services,Salaries,1121,"For Agency Staff, NAME REDACTED to work a total of 89 days. Start date of April 26th, until August 31st 2021",29/09/2021,0000471991,"1,400.00",Revenue,The Oyster Partnership,0
South Ribble Borough Council,http://statistics.data.gov.uk/id/local-authority/30UE,Central Support Services,Salaries,1121,"For Agency Staff, NAME REDACTED to work a total of 89 days. Start date of April 26th, until August 31st 2021",29/09/2021,0000472118,"1,400.00",Revenue,The Oyster Partnership,0
South Ribble Borough Council,http://statistics.data.gov.uk/id/local-authority/30UE,Central Support Services,Energy Costs,2303,1/7/21 to 31/7/21,01/09/2021,0000471261,"2,572.04",Revenue,Total Gas & power Ltd,0
South Ribble Borough Council,http://statistics.data.gov.uk/id/local-authority/30UE,Open Spaces,Energy Costs,2303,4/5 to 3/8/21,01/09/2021,0000471267,653.35,Revenue,Total Gas & power Ltd,0
South Ribble Borough Council,http://statistics.data.gov.uk/id/local-authority/30UE,Open Spaces,Energy Costs,2303,1/5 to 31/7/21,01/09/2021,0000471269,470.50,Revenue,Total Gas & power Ltd,0
South Ribble Borough Council,http://statistics.data.gov.uk/id/local-authority/30UE,Economic Development,Energy Costs,2303,1/7 to 31/7/21,01/09/2021,0000471271,"1,535.90",Revenue,Total Gas & power Ltd,0
South Ribble Borough Council,http://statistics.data.gov.uk/id/local-authority/30UE,Central Support Services,Energy Costs,2303,1/7 to 31/7/21,01/09/2021,0000471274,"2,729.34",Revenue,Total Gas & power Ltd,0
South Ribble Borough Council,http://statistics.data.gov.uk/id/local-authority/30UE,Central Support Services,Energy Costs,2304,31/7 to 31/8/21,22/09/2021,0000471720,508.93,Revenue,Total Gas & power Ltd,0
South Ribble Borough Council,http://statistics.data.gov.uk/id/local-authority/30UE,Open Spaces,Energy Costs,2303,1/8 to 31/8/21,22/09/2021,0000471721,496.63,Revenue,Total Gas & power Ltd,0
South Ribble Borough Council,http://statistics.data.gov.uk/id/local-authority/30UE,Economic Development,Energy Costs,2303,1/8 to 31/8/21,22/09/2021,0000471741,"1,422.66",Revenue,Total Gas & power Ltd,0
South Ribble Borough Council,http://statistics.data.gov.uk/id/local-authority/30UE,Central Support Services,Energy Costs,2303,1/8 to 31/8,22/09/2021,0000471742,"2,418.43",Revenue,Total Gas & power Ltd,0
South Ribble Borough Council,http://statistics.data.gov.uk/id/local-authority/30UE,Central Support Services,Energy Costs,2303,1/8 to 31/8/21,22/09/2021,0000471743,"2,616.11",Revenue,Total Gas & power Ltd,0
South Ribble Borough Council,http://statistics.data.gov.uk/id/local-authority/30UE,Open Spaces,Services,4570,fell and remove 1 x Ash Tree and 1 x willow tree,15/09/2021,0000471588,"1,800.00",Revenue,Trunks Tree Care Ltd,0
South Ribble Borough Council,http://statistics.data.gov.uk/id/local-authority/30UE,Economic Development,Services,4510,NAME REDACTED TO PERFORM AT THE MUSIC IN THE PARK 2022,29/09/2021,0000472088,"2,500.00",Revenue,UK Media Events Ltd,0
South Ribble Borough Council,http://statistics.data.gov.uk/id/local-authority/30UE,Street Cleansing,Services,4570,Highways sign cleaning for 2 weeks commencing 16th August 2021.,01/09/2021,0000471436,"1,520.00",Revenue,ULTRA CLEAN CONSERVATORIES,0
South Ribble Borough Council,http://statistics.data.gov.uk/id/local-authority/30UE,Regulatory Services,Services,4542,Water Samples from April 21 - March 22,22/09/2021,0000471749,251.26,Revenue,UNITED UTILITIES WATER PLC,0
South Ribble Borough Council,http://statistics.data.gov.uk/id/local-authority/30UE,Democratic Represent and  Mgnt,Furniture- Equip & Materials,4012,2021 / 2022 annual contract for the monthly rental of hot drinks machines at the civic centre including environmental charge.,01/09/2021,0000471451,291.98,Revenue,VENDING ENTERPRISES,0
South Ribble Borough Council,http://statistics.data.gov.uk/id/local-authority/30UE,Democratic Represent and  Mgnt,Catering,4311,coffee for the machines,15/09/2021,0000471460,353.30,Revenue,VENDING ENTERPRISES,0
South Ribble Borough Council,http://statistics.data.gov.uk/id/local-authority/30UE,Open Spaces,Furniture- Equip & Materials,4046,"Summer Bedding Plants as per Quotation, For delivery week commencing Monday 7th June 2021, Please contact NAME REDACTED",15/09/2021,0000471618,"1,761.19",Revenue,Walkers Nurseries Chester Ltd,0
South Ribble Borough Council,http://statistics.data.gov.uk/id/local-authority/30UE,Open Spaces,Furniture- Equip & Materials,4046,"Summer Bedding Plants as per Quotation, For delivery week commencing Monday 7th June 2021, Please contact NAME REDACTED",15/09/2021,0000471623,"2,091.93",Revenue,Walkers Nurseries Chester Ltd,0
South Ribble Borough Council,http://statistics.data.gov.uk/id/local-authority/30UE,Capital,Capital Other Land & Bldgs,C230,Site Hoarding for Worden mind buildings inc options for additional site access as per NAME REDACTED request,29/09/2021,0000471927,"24,593.74",Revenue,Wallbank Fencing Ltd,0
South Ribble Borough Council,http://statistics.data.gov.uk/id/local-authority/30UE,Open Spaces,Water,2511,water supply,22/09/2021,0000471755,"2,768.03",Revenue,WATER PLUS,0
South Ribble Borough Council,http://statistics.data.gov.uk/id/local-authority/30UE,Open Spaces,Water,2511,used water,22/09/2021,0000471755,"1,696.48",Revenue,WATER PLUS,0
South Ribble Borough Council,http://statistics.data.gov.uk/id/local-authority/30UE,Open Spaces,Water,2511,late fee,22/09/2021,0000471755,70.00,Revenue,WATER PLUS,0
South Ribble Borough Council,http://statistics.data.gov.uk/id/local-authority/30UE,Central Support Services,Miscellaneous Expenses,4821,DEFAMATION ADVICE RE NAME REDACTED,08/09/2021,0000471626,"1,401.00",Revenue,WEIGHTMANS LLP,0
South Ribble Borough Council,http://statistics.data.gov.uk/id/local-authority/30UE,Recreation & Sport,Premises Repair & Mtne,2021,"Cost of hire of 1 x anti vandal toilet unit, 1 x 500 gallon effluent tank & 1 x anti vandal canteen unit to be located at Penwortham Holme",29/09/2021,0000471849,434.00,Revenue,Wernick Hire Ltd,0
South Ribble Borough Council,http://statistics.data.gov.uk/id/local-authority/30UE,Open Spaces,Expenses,4657,Stump grinding on Hurst Grange Park.,15/09/2021,0000471437,425.00,Revenue,WESTFIELD TREE SERVICES LTD,0
South Ribble Borough Council,http://statistics.data.gov.uk/id/local-authority/30UE,Recreation & Sport,Services,4510,August 2021 Instructor Fee,29/09/2021,0000472080,"1,819.00",Revenue,What A Racquet Ltd,0
South Ribble Borough Council,http://statistics.data.gov.uk/id/local-authority/30UE,Local Tax Collection,Communications & Comuting,4291,Postage April to November 2021 (contract ends then),08/09/2021,0000471399,286.91,Revenue,WHISTL  UK LTD,0
South Ribble Borough Council,http://statistics.data.gov.uk/id/local-authority/30UE,Local Tax Collection,Communications & Comuting,4291,Postage April to November 2021 (contract ends then),08/09/2021,0000471439,335.17,Revenue,WHISTL  UK LTD,0
